{"text_format":"1","workbook":"xlsx","n_sheets":10,"sheets":["入力シート","出力シート","入力方法等のご案内","送付先指定について","宛先兼チェックリスト","入力例","【参考】将来の受取利息額","単年利率入力","ﾌﾟﾙﾀﾞｳﾝﾘｽﾄ","郵便番号"],"not_rendered":{"charts":0,"images":3,"macros":1,"external_links":0,"defined_names":7,"comments":2,"pivot_tables":0},"unopened":[],"bounds":{"document_bytes":16777216,"sheet_cells":100000,"rows_first":2000,"rows_last":500,"rows_between":2000,"halvings":0,"cell_chars":16384,"cell_head_chars":4096},"cells_cut":0,"cells_raw":0,"read":"whole","date_system":"1900"}

{"sheet":"入力シート","index":0,"n_rows":103,"n_cols":84,"rows_kept":103,"cut":false,"hidden":false,"merged":[[7,7,7,30],[7,41,8,69],[87,32,89,54],[80,15,80,22],[90,1,93,9],[90,10,90,14],[91,10,91,14],[92,10,92,14],[93,10,93,14],[93,15,93,17],[93,19,93,21],[93,23,93,25],[90,15,90,30],[91,15,91,30],[92,15,92,38],[85,1,85,9],[85,10,85,11],[85,12,85,13],[88,1,88,9],[88,10,88,22],[82,1,83,9],[82,10,82,14],[82,15,82,18],[83,10,83,14],[83,15,83,18],[5,7,5,12],[86,1,86,9],[86,10,86,11],[86,12,86,13],[26,10,26,12],[25,13,25,22],[26,13,26,22],[18,19,18,24],[20,15,20,18],[21,15,21,18],[20,10,21,14],[22,10,23,14],[22,19,22,41],[21,19,21,24],[59,18,59,20],[55,10,55,14],[55,15,55,16],[56,10,56,14],[56,15,56,28],[40,10,40,14],[42,10,42,14],[34,10,35,14],[34,15,34,18],[34,19,34,24],[31,10,31,14],[1,1,3,12],[5,1,5,6],[5,13,5,14],[5,16,5,17],[10,1,10,6],[10,7,10,12],[1,15,1,19],[2,15,2,19],[3,15,3,19],[7,1,7,6],[8,1,8,6],[8,7,8,9],[8,13,8,14],[8,16,8,17],[8,10,8,11],[12,1,13,9],[12,10,12,12],[13,10,13,12],[12,13,12,37],[13,13,13,37],[15,1,15,9],[15,10,15,13],[17,10,17,14],[18,10,19,14],[18,15,18,18],[19,15,19,18],[18,25,19,46],[17,1,23,9],[20,19,20,24],[17,15,17,16],[17,18,17,20],[19,19,19,24],[31,15,31,16],[31,18,31,20],[33,19,33,24],[102,7,102,33],[32,10,33,14],[32,19,32,24],[23,19,23,41],[22,15,22,18],[23,15,23,18],[28,10,28,13],[29,10,29,11],[29,12,29,13],[25,1,26,9],[25,10,25,12],[32,25,33,46],[35,15,35,18],[47,15,47,18],[49,15,49,18],[32,15,32,18],[33,15,33,18],[31,1,40,9],[40,15,40,17],[36,10,37,14],[28,1,28,9],[29,1,29,9],[38,10,39,14],[38,15,38,18],[42,1,52,9],[42,15,42,28],[50,10,50,14],[51,10,51,14],[50,15,50,28],[51,15,51,28],[48,10,49,14],[48,15,48,18],[48,19,48,41],[43,10,43,14],[45,19,45,24],[52,10,52,14],[52,15,52,17],[52,19,52,21],[52,23,52,25],[46,10,47,14],[46,15,46,18],[46,19,46,24],[44,25,45,46],[43,15,43,16],[43,18,43,20],[35,19,35,24],[47,19,47,24],[38,19,38,41],[39,15,39,18],[39,19,39,41],[45,15,45,18],[36,19,36,41],[37,15,37,18],[37,19,37,41],[40,19,40,21],[40,23,40,25],[36,15,36,18],[78,15,78,30],[75,10,75,14],[76,10,76,14],[74,10,74,20],[70,15,70,17],[71,15,71,17],[72,15,72,17],[77,31,78,43],[44,10,45,14],[44,15,44,18],[44,19,44,24],[49,19,49,41],[54,10,54,14],[54,15,54,41],[79,10,79,14],[79,15,79,30],[80,10,80,14],[74,21,74,23],[74,24,74,25],[74,27,74,28],[77,10,78,14],[75,15,75,18],[58,10,58,14],[58,15,58,28],[59,10,59,14],[60,10,61,14],[60,15,60,18],[60,19,60,24],[61,15,61,18],[61,19,61,24],[62,10,63,14],[62,15,62,18],[62,19,62,24],[63,15,63,18],[65,19,65,41],[75,19,75,20],[76,15,76,30],[77,15,77,30],[54,1,68,9],[70,10,70,14],[71,10,71,14],[72,10,72,14],[73,10,73,14],[67,10,67,14],[67,15,67,28],[68,10,68,14],[68,15,68,17],[68,19,68,21],[68,23,68,25],[64,10,65,14],[64,15,64,18],[64,19,64,41],[65,15,65,18],[66,10,66,14],[66,15,66,28],[57,10,57,14],[57,15,57,28],[59,15,59,16],[70,1,80,9],[73,15,73,17],[60,25,61,46],[63,19,63,24]]}
[null,null,null,null,null,null,null,null,null,null,null,null,null,null,null,null,null,null,null,null,null,null,null,null,null,null,null,null,null,null,null,null,null,null,null,null,null,null,null,null,null,null,null,null,null,null,null,null,null,null,null,null,null,null,null,null,null,null,null,null,null,null,null,0]
[null,"入力シート",null,null,null,null,null,null,null,null,null,null,null,null,null,null,null,null,null,null,"黄色のセルは必ず入力いただく項目です。"]
[null,null,null,null,null,null,null,null,null,null,null,null,null,null,null,null,null,null,null,null,"オレンジ色のセルは、当てはまる場合のみ入力いただく項目です。"]
[null,null,null,null,null,null,null,null,null,null,null,null,null,null,null,null,null,null,null,null,"セルが黒く反転した場合は、入力不要です。"]
[]
[null,"記入日",null,null,null,null,null,"2025年",null,null,null,null,null,null,null,"月",null,null,"日","←プルダウンから選択してください。"]
[]
[null,"商品の種類",null,null,null,null,null,null,null,null,null,null,null,null,null,null,null,null,null,null,null,null,null,null,null,null,null,null,null,null,null,"←プルダウンから選択してください。",null,null,null,null,null,null,null,null,null,{"$f":"IF($H$8=ﾌﾟﾙﾀﾞｳﾝﾘｽﾄ!$H$7,\"「1.管理計画認定マンション向け商品（10年満期時年平均利率：0.575％）」を選択された場合、　地方公共団体が発行した「認定通知書」の写しも提出いただく必要があります。\",\"\")","v":""}]
[null,{"$f":"IF($H$8=ﾌﾟﾙﾀﾞｳﾝﾘｽﾄ!$H$7,\"認定日\",\"入力不要\")","v":"入力不要"},null,null,null,null,null,"（西暦）",null,null,null,null,"年",null,null,"月",null,null,"日","←管理計画認定マンションの場合、認定日をプルダウンから入力願います。"]
[]
[null,"積立組合番号",null,null,null,null,null,null,null,null,null,null,null,"←既に積立てを行っている管理組合が応募する場合は必ず入力願います（「3」から始まる6桁の番号）。"]
[]
[null,"マンション管理組合の名称",null,null,null,null,null,null,null,null,"フリガナ",null,null,null,null,null,null,null,null,null,null,null,null,null,null,null,null,null,null,null,null,null,null,null,null,null,null,null,"←80文字以下で入力願います。"]
[null,null,null,null,null,null,null,null,null,null,"漢字等",null,null,null,null,null,null,null,null,null,null,null,null,null,null,null,null,null,null,null,null,null,null,null,null,null,null,null,"←40文字以下で入力願います。"]
[]
[null,"法人登記の有無",null,null,null,null,null,null,null,null,null,null,null,null,"←プルダウンから選択してください。"]
[]
[null,"マンションの所在地\n（住居表示上の住所）",null,null,null,null,null,null,null,null,"郵便番号",null,null,null,null,null,null,"－"]
[null,null,null,null,null,null,null,null,null,null,"都道府県",null,null,null,null,"フリガナ",null,null,null,{"$f":"IF(P18=\"\",\"\",VLOOKUP(TEXT(P18,\"000\"),郵便番号!$A$1:$C$948,3,0))","v":""},null,null,null,null,null,"←郵便番号（上３桁）から自動表示されます。\n   自動表示される都道府県名が異なる場合は、お手数ですが、直接入力願います。"]
[null,null,null,null,null,null,null,null,null,null,null,null,null,null,null,"漢字等",null,null,null,{"$f":"IF(P18=\"\",\"\",VLOOKUP(TEXT(P18,\"000\"),郵便番号!$A$1:$C$948,2,0))","v":""}]
[null,null,null,null,null,null,null,null,null,null,"市・区・郡",null,null,null,null,"フリガナ"]
[null,null,null,null,null,null,null,null,null,null,null,null,null,null,null,"漢字等"]
[null,null,null,null,null,null,null,null,null,null,"区町村名・番地",null,null,null,null,"フリガナ"]
[null,null,null,null,null,null,null,null,null,null,null,null,null,null,null,"漢字等",null,null,null,null,null,null,null,null,null,null,null,null,null,null,null,null,null,null,null,null,null,null,null,null,null,null,"←23文字以下で入力願います。"]
[]
[null,"代表者氏名",null,null,null,null,null,null,null,null,"フリガナ",null,null,null,null,null,null,null,null,null,null,null,null," ←「姓名」の間にスペース（半角）を入力のうえ、20文字以下で入力願います。"]
[null,null,null,null,null,null,null,null,null,null,"漢字等",null,null,null,null,null,null,null,null,null,null,null,null," ←「姓名」の間にスペース（全角）を入力のうえ、15文字以下で入力願います。"]
[]
[null,"代表者の任期（期間）",null,null,null,null,null,null,null,null,null,null,null,null,"年間",null,"←プルダウンから選択してください。"]
[null,"集会（定期総会の開催月）",null,null,null,null,null,null,null,null,"毎年",null,null,null,"月頃",null,"←プルダウンから選択してください。"]
[]
[null,"\n\n\n代表者の住所等\n（住居表示上の住所）",null,null,null,null,null,null,null,null,"郵便番号",null,null,null,null,null,null,"－"]
[null,null,null,null,null,null,null,null,null,null,"都道府県",null,null,null,null,"フリガナ",null,null,null,{"$f":"IF(P32=\"\",\"\",VLOOKUP(TEXT(P32,\"000\"),郵便番号!$A$1:$C$948,3,0))","v":""},null,null,null,null,null,"←郵便番号（上３桁）から自動表示されます。\n   自動表示される都道府県名が異なる場合は、お手数ですが、直接入力願います。"]
[null,null,null,null,null,null,null,null,null,null,null,null,null,null,null,"漢字等",null,null,null,{"$f":"IF(P32=\"\",\"\",VLOOKUP(TEXT(P32,\"000\"),郵便番号!$A$1:$C$948,2,0))","v":""}]
[null,null,null,null,null,null,null,null,null,null,"市・区・郡",null,null,null,null,"フリガナ"]
[null,null,null,null,null,null,null,null,null,null,null,null,null,null,null,"漢字等"]
[null,null,null,null,null,null,null,null,null,null,"区町村名・番地",null,null,null,null,"フリガナ"]
[null,null,null,null,null,null,null,null,null,null,null,null,null,null,null,"漢字等",null,null,null,null,null,null,null,null,null,null,null,null,null,null,null,null,null,null,null,null,null,null,null,null,null,null,"←23文字以下で入力願います。"]
[null,null,null,null,null,null,null,null,null,null,"マンション名称\n・号室等",null,null,null,null,"フリガナ",null,null,null,null,null,null,null,null,null,null,null,null,null,null,null,null,null,null,null,null,null,null,null,null,null,null,null,null,null,null,null,null,null,null,null,null,null,null,null,null,null,null,null,null,null,null,null,null,null,null,null,null,null,null,null,null,null,null,null,null,null,null,null,null,null,null,null,{"$f":"IF(T39=\"ｺﾀﾞﾃ\",1,0)","v":0}]
[null,null,null,null,null,null,null,null,null,null,null,null,null,null,null,"漢字等",null,null,null,null,null,null,null,null,null,null,null,null,null,null,null,null,null,null,null,null,null,null,null,null,null,null,"←23文字以下で入力願います。なお、戸建てにお住まいの場合は、ﾌﾘｶﾞﾅ欄にｺﾀﾞﾃ、漢字等欄に戸建てと入力願います。",null,null,null,null,null,null,null,null,null,null,null,null,null,null,null,null,null,null,null,null,null,null,null,null,null,null,null,null,null,null,null,null,null,null,null,null,null,null,null,null,{"$f":"IF(T40=\"戸建て\",1,0)","v":0}]
[null,null,null,null,null,null,null,null,null,null,"電話番号",null,null,null,null,"",null,null,"－","",null,null,"－",""]
[]
[null,"管理会社等の連絡先",null,null,null,null,null,null,null,null,"管理会社名",null,null,null,null,null,null,null,null,null,null,null,null,null,null,null,null,null,null,null,"←管理会社がない場合は管理組合事務室等を入力願います。23文字以下で入力願います。"]
[null,null,null,null,null,null,null,null,null,null,"郵便番号",null,null,null,null,null,null,"－"]
[null,null,null,null,null,null,null,null,null,null,"都道府県",null,null,null,null,"フリガナ",null,null,null,{"$f":"IF($P$44=\"\",\"\",VLOOKUP(TEXT($P$44,\"000\"),郵便番号!$A$1:$C$948,3,0))","v":""},null,null,null,null,null,"←郵便番号（上３桁）から自動表示されます。\n   自動表示される都道府県名が異なる場合は、お手数ですが、直接入力願います。"]
[null,null,null,null,null,null,null,null,null,null,null,null,null,null,null,"漢字等",null,null,null,{"$f":"IF($P$44=\"\",\"\",VLOOKUP(TEXT($P$44,\"000\"),郵便番号!$A$1:$C$948,2,0))","v":""}]
[null,null,null,null,null,null,null,null,null,null,"市・区・郡",null,null,null,null,"フリガナ"]
[null,null,null,null,null,null,null,null,null,null,null,null,null,null,null,"漢字等"]
[null,null,null,null,null,null,null,null,null,null,"区町村名・番地",null,null,null,null,"フリガナ",null,null,null,null,null,null,null,null,null,null,null,null,null,null,null,null,null,null,null,null,null,null,null,null,null,null,"←23文字以下で入力願います。"]
[null,null,null,null,null,null,null,null,null,null,null,null,null,null,null,"漢字等",null,null,null,null,null,null,null,null,null,null,null,null,null,null,null,null,null,null,null,null,null,null,null,null,null,null,"←23文字以下で入力願います。"]
[null,null,null,null,null,null,null,null,null,null,"担当部署名",null,null,null,null,null,null,null,null,null,null,null,null,null,null,null,null,null,null,"←15文字以下で入力願います。"]
[null,null,null,null,null,null,null,null,null,null,"担当者名",null,null,null,null,null,null,null,null,null,null,null,null,null,null,null,null,null,null," ←「姓名」の間にスペース（全角）を入力願います。8文字以下で入力願います。"]
[null,null,null,null,null,null,null,null,null,null,"電話番号",null,null,null,null,"",null,null,"－","",null,null,"－","",null,null,"←可能な限り固定電話番号を入力願います。"]
[]
[null,"送付先指定関係\n\n（管理事務室・管理事務所を送付先とすることはできません。）",null,null,null,null,null,null,null,null,"送付先指定の種類",null,null,null,null,null,null,null,null,null,null,null,null,null,null,null,null,null,null,null,null,null,null,null,null,null,null,null,null,null,null,null,"←プルダウンから選択してください。なお、過去に購入した債券（すべて）の残高がゼロの場合は、必ず「1.」、または「2.」を選択してください。\n"]
[null,null,null,null,null,null,null,null,null,null,{"$f":"IF(OR($P$55=ﾌﾟﾙﾀﾞｳﾝﾘｽﾄ!$H$3,$P$55=ﾌﾟﾙﾀﾞｳﾝﾘｽﾄ!$H$4),\"入力不要\",\"資料の確認及び承認\")","v":"資料の確認及び承認"},null,null,null,null,null,null,"←ひとつ上の選択欄で「1.」を選択した場合、　　　　　　　　　　　　　　　　　　　　　を確認し、末尾記載の事項を承認願います。確認・承認いただけた場合、左の□をクリックし、☑を入力してください。"]
[null,null,null,null,null,null,null,null,null,null,{"$f":"IF(OR($P$55=ﾌﾟﾙﾀﾞｳﾝﾘｽﾄ!$H$3,$P$55=ﾌﾟﾙﾀﾞｳﾝﾘｽﾄ!$H$4),\"入力不要\",\"書類の種類\")","v":"書類の種類"},null,null,null,null,null,null,null,null,null,null,null,null,null,null,null,null,null,null,"←プルダウンから選択してください（２つ上の選択欄で「1.」を選択した場合のみ）。"]
[null,null,null,null,null,null,null,null,null,null,{"$f":"IF(OR($P$55=ﾌﾟﾙﾀﾞｳﾝﾘｽﾄ!$H$3,$P$55=ﾌﾟﾙﾀﾞｳﾝﾘｽﾄ!$H$4),\"入力不要\",\"書類の送付先\")","v":"書類の送付先"},null,null,null,null,null,null,null,null,null,null,null,null,null,null,null,null,null,null,"←プルダウンから選択してください（３つ上の選択欄で「1.」を選択した場合のみ）。"]
[null,null,null,null,null,null,null,null,null,null,{"$f":"IF(OR($P$55=ﾌﾟﾙﾀﾞｳﾝﾘｽﾄ!$H$3,$P$55=ﾌﾟﾙﾀﾞｳﾝﾘｽﾄ!$H$4,$P$58=\"1.上記記載の管理会社の連絡先と同じ\"),\"入力不要\",\"管理会社名\")","v":"管理会社名"},null,null,null,null,null,null,null,null,null,null,null,null,null,null,null,null,null,null,"←以下の項目は、ひとつ上の選択欄で「2.」を選択した場合のみ入力願います。23文字以下で入力願います。"]
[null,null,null,null,null,null,null,null,null,null,{"$f":"IF(OR($P$55=ﾌﾟﾙﾀﾞｳﾝﾘｽﾄ!$H$3,$P$55=ﾌﾟﾙﾀﾞｳﾝﾘｽﾄ!$H$4,$P$58=\"1.上記記載の管理会社の連絡先と同じ\"),\"入力不要\",\"郵便番号\")","v":"郵便番号"},null,null,null,null,null,null,"－"]
[null,null,null,null,null,null,null,null,null,null,{"$f":"IF(OR($P$55=ﾌﾟﾙﾀﾞｳﾝﾘｽﾄ!$H$3,$P$55=ﾌﾟﾙﾀﾞｳﾝﾘｽﾄ!$H$4,$P$58=\"1.上記記載の管理会社の連絡先と同じ\"),\"入力不要\",\"都道府県\")","v":"都道府県"},null,null,null,null,"フリガナ",null,null,null,{"$f":"IF($P$60=\"\",\"\",VLOOKUP(TEXT($P$60,\"000\"),郵便番号!$A$1:$C$948,3,0))","v":""},null,null,null,null,null,"←郵便番号（上３桁）から自動表示されます。\n   自動表示される都道府県名が異なる場合は、お手数ですが、直接入力願います。"]
[null,null,null,null,null,null,null,null,null,null,null,null,null,null,null,"漢字等",null,null,null,{"$f":"IF($P$60=\"\",\"\",VLOOKUP(TEXT($P$60,\"000\"),郵便番号!$A$1:$C$948,2,0))","v":""}]
[null,null,null,null,null,null,null,null,null,null,{"$f":"IF(OR($P$55=ﾌﾟﾙﾀﾞｳﾝﾘｽﾄ!$H$3,$P$55=ﾌﾟﾙﾀﾞｳﾝﾘｽﾄ!$H$4,$P$58=\"1.上記記載の管理会社の連絡先と同じ\"),\"入力不要\",\"市・区・郡\")","v":"市・区・郡"},null,null,null,null,"フリガナ"]
[null,null,null,null,null,null,null,null,null,null,null,null,null,null,null,"漢字等"]
[null,null,null,null,null,null,null,null,null,null,{"$f":"IF(OR($P$55=ﾌﾟﾙﾀﾞｳﾝﾘｽﾄ!$H$3,$P$55=ﾌﾟﾙﾀﾞｳﾝﾘｽﾄ!$H$4,$P$58=\"1.上記記載の管理会社の連絡先と同じ\"),\"入力不要\",\"区町村名番地\")","v":"区町村名番地"},null,null,null,null,"フリガナ"]
[null,null,null,null,null,null,null,null,null,null,null,null,null,null,null,"漢字等"]
[null,null,null,null,null,null,null,null,null,null,{"$f":"IF(OR($P$55=ﾌﾟﾙﾀﾞｳﾝﾘｽﾄ!$H$3,$P$55=ﾌﾟﾙﾀﾞｳﾝﾘｽﾄ!$H$4,$P$58=\"1.上記記載の管理会社の連絡先と同じ\"),\"入力不要\",\"担当部署名\")","v":"担当部署名"},null,null,null,null,null,null,null,null,null,null,null,null,null,null,null,null,null,null,"←23文字以下で入力願います。"]
[null,null,null,null,null,null,null,null,null,null,{"$f":"IF(OR($P$55=ﾌﾟﾙﾀﾞｳﾝﾘｽﾄ!$H$3,$P$55=ﾌﾟﾙﾀﾞｳﾝﾘｽﾄ!$H$4,$P$58=\"1.上記記載の管理会社の連絡先と同じ\"),\"入力不要\",\"担当者名\")","v":"担当者名"},null,null,null,null,null,null,null,null,null,null,null,null,null,null,null,null,null,null," ←「姓名」の間にスペース（全角）を入力願います。15文字以下で入力願います。"]
[null,null,null,null,null,null,null,null,null,null,{"$f":"IF(OR($P$55=ﾌﾟﾙﾀﾞｳﾝﾘｽﾄ!$H$3,$P$55=ﾌﾟﾙﾀﾞｳﾝﾘｽﾄ!$H$4,$P$58=\"1.上記記載の管理会社の連絡先と同じ\"),\"入力不要\",\"電話番号\")","v":"電話番号"},null,null,null,null,"",null,null,"－","",null,null,"－","",null,null,"←可能な限り固定電話番号を入力願います。"]
[]
[null,"その他",null,null,null,null,null,null,null,null,"棟数",null,null,null,null,null,null,null,"棟","←マンションの棟数を入力してください。"]
[null,null,null,null,null,null,null,null,null,null,"階数",null,null,null,null,null,null,null,"階","←マンションの階数（地下階を含む）を入力してください（複数棟ある場合は、平均の階数（小数点以下四捨五入）を入力してください。）。"]
[null,null,null,null,null,null,null,null,null,null,"戸数",null,null,null,null,null,null,null,"戸","←マンションの全住宅戸数を入力してください（複数棟ある場合は、複数棟全体の住宅戸数を入力してください。）。"]
[null,null,null,null,null,null,null,null,null,null,"入居世帯数",null,null,null,null,null,null,null,"世帯",null,"←マンションの入居世帯数を入力してください（複数棟ある場合は、複数棟全体の入居世帯数を入力してください。）。"]
[null,null,null,null,null,null,null,null,null,null,"次回大規模修繕工事の予定時期",null,null,null,null,null,null,null,null,null,null,"令和",null,null,null,null,"年",null,null,"月頃",null,"←「年」「月」はプルダウンから選択してください。ただし、未定の場合は「年」のプルダウンから「未定」を選択してください。"]
[null,null,null,null,null,null,null,null,null,null,"マンションの竣工時期",null,null,null,null,null,null,null,null,null,null,"年","←「元号」はプルダウンから選択してください。"]
[null,null,null,null,null,null,null,null,null,null,"積立ての理由",null,null,null,null,null,null,null,null,null,null,null,null,null,null,null,null,null,null,null,null,"←プルダウンから選択してください。"]
[null,null,null,null,null,null,null,null,null,null,"今回の募集の\n情報入手先",null,null,null,null,null,null,null,null,null,null,null,null,null,null,null,null,null,null,null,null,"←プルダウンから選択してください（１つまたは２つ）。"]
[]
[null,null,null,null,null,null,null,null,null,null,"積立口数の考え方",null,null,null,null,null,null,null,null,null,null,null,null,null,null,null,null,null,null,null,null,"←プルダウンから選択してください。"]
[null,null,null,null,null,null,null,null,null,null,"長期修繕計画期間",null,null,null,null,null,null,null,null,null,null,null,null,"←プルダウンから選択してください。"]
[]
[null,"1回あたりの積立希望口数\n及び積立希望金額",null,null,null,null,null,null,null,null,"口数",null,null,null,null,null,null,null,null,"口"]
[null,null,null,null,null,null,null,null,null,null,"金額",null,null,null,null,{"$f":"IF(P83=\"\",\"\",P83*50)","v":""},null,null,null,"万円",null,"←1口50万円として自動計算します。"]
[]
[null,"管理組合の決算月",null,null,null,null,null,null,null,null,"毎年",null,null,null,"月末",null,"←プルダウンから選択してください。　"]
[null,"残高証明書の送付月",null,null,null,null,null,null,null,null,"毎年",null,{"$f":"IF($M$86=\"\",\"\",IF(M86=12,1,M86+1))","v":""},null,"月",null,"←管理組合の決算月の翌月が残高証明書の送付月となります（自動表示されます）。"]
[null,null,null,null,null,null,null,null,null,null,null,null,null,null,null,null,null,null,null,null,null,null,null,null,null,null,null,null,null,null,null,null,{"$f":"IF(K89=\"2.任意の封筒（宅配便等を含む。）\",\"「2.任意の封筒（宅配便等を含む。）」を選択された場合、「宛先兼チェックリスト」もあわせて印刷されます。問合せ先名称等を入力の上、封筒の表面に貼付してご郵送願います。\",\"\")","v":""}]
[null,"応募書類送付時に使用する封筒",null,null,null,null,null,null,null,null,null,null,null,null,null,null,null,null,null,null,null,null,null,"←プルダウンから選択してください。"]
[]
[null,"提出書類に関する\n機構からの問合せ先\n\n（任意の封筒を利用される際に必要な\n「宛先兼チェックリスト」に反映されます）",null,null,null,null,null,null,null,null,{"$f":"IF($K$89=ﾌﾟﾙﾀﾞｳﾝﾘｽﾄ!$F$21,\"入力不要\",\"お選びください→\")","v":"お選びください→"},null,null,null,null,null,null,null,null,null,null,null,null,null,null,null,null,null,null,null,null,"←プルダウンから選択してください。"]
[null,null,null,null,null,null,null,null,null,null,{"$f":"IF(OR($K$89=ﾌﾟﾙﾀﾞｳﾝﾘｽﾄ!$F$21,$P$91=ﾌﾟﾙﾀﾞｳﾝﾘｽﾄ!$F$24,$P$91=ﾌﾟﾙﾀﾞｳﾝﾘｽﾄ!$F$25),\"入力不要\",\"名称\")","v":"名称"}]
[null,null,null,null,null,null,null,null,null,null,{"$f":"IF(OR($K$89=ﾌﾟﾙﾀﾞｳﾝﾘｽﾄ!$F$21,$P$91=ﾌﾟﾙﾀﾞｳﾝﾘｽﾄ!$F$24,$P$91=ﾌﾟﾙﾀﾞｳﾝﾘｽﾄ!$F$25),\"入力不要\",\"住所\")","v":"住所"}]
[null,null,null,null,null,null,null,null,null,null,{"$f":"IF(OR($K$89=ﾌﾟﾙﾀﾞｳﾝﾘｽﾄ!$F$21,$P$91=ﾌﾟﾙﾀﾞｳﾝﾘｽﾄ!$F$24,$P$91=ﾌﾟﾙﾀﾞｳﾝﾘｽﾄ!$F$25),\"入力不要\",\"電話番号\")","v":"電話番号"},null,null,null,null,"",null,null,"－","",null,null,"－",""]
[]
[]
[null,"入力項目は以上です。入力もれがないかどうか、↓の「エラーチェック」ボタンを押して、ご確認ください。"]
[]
[]
[]
[]
[]
[null,null,null,null,null,null,null,"エラーチェック後、入力もれ等がある場合は、セルが赤く反転します。ご確認をお願いします。"]

{"sheet":"出力シート","index":1,"n_rows":71,"n_cols":64,"rows_kept":71,"cut":false,"hidden":false,"merged":[[26,3,32,10],[15,14,15,39],[22,14,22,39],[31,16,31,39],[32,16,32,39],[24,11,25,28],[31,11,31,15],[18,20,18,39],[25,34,25,35],[25,36,25,37],[21,14,21,39],[26,20,26,39],[23,11,23,13],[1,2,1,4],[3,34,3,35],[3,37,3,38],[3,28,3,33],[14,17,14,39],[16,11,16,39],[14,3,14,10],[15,3,16,10],[17,3,17,10],[12,1,12,10],[12,11,12,39],[14,1,22,2],[13,3,13,10],[13,13,13,14],[13,15,13,16],[13,17,13,18],[13,19,13,20],[13,21,13,22],[13,23,13,24],[13,25,13,39],[13,11,13,12],[0,28,0,39],[30,11,30,15],[29,11,29,15],[23,29,24,33],[23,34,24,37],[23,38,24,39],[15,11,15,13],[29,16,29,39],[23,14,23,28],[30,16,30,39],[18,11,18,16],[19,11,20,12],[19,13,20,13],[19,14,20,16],[41,22,41,29],[53,11,53,14],[54,11,54,14],[50,20,50,39],[46,11,46,39],[44,5,44,39],[34,1,42,10],[35,11,35,39],[34,11,34,39],[39,15,39,39],[40,15,40,39],[39,11,39,14],[49,11,49,39],[45,3,45,10],[42,30,42,31],[42,33,42,35],[40,11,40,14],[37,11,38,12],[37,13,38,13],[37,14,38,16],[42,37,42,39],[46,3,46,10],[53,15,53,39],[45,11,45,39],[23,1,33,2],[33,3,33,10],[23,3,25,10],[56,22,56,29],[22,11,22,13],[18,3,22,10],[33,17,33,20],[33,22,33,25],[64,33,65,39],[65,1,68,10],[58,13,59,15],[57,18,57,21],[65,11,66,14],[57,13,57,14],[65,31,68,32],[65,19,68,26],[65,27,68,28],[65,29,68,30],[65,15,66,17],[67,15,68,17],[62,13,62,39],[63,13,63,39],[61,13,61,39],[57,5,57,6],[67,11,68,14],[58,3,59,12],[58,18,59,19],[59,27,59,39],[57,15,57,16],[60,13,60,19],[57,27,57,39],[58,16,59,17],[58,22,59,26],[57,10,57,11],[57,25,57,26],[60,27,60,39],[58,20,59,21],[56,37,56,39],[47,4,56,10],[57,1,63,2],[62,3,63,12],[42,22,42,29],[43,11,43,39],[57,8,57,9],[61,3,61,12],[58,27,58,39],[60,3,60,12],[60,20,60,22],[57,3,57,4],[54,15,54,39],[56,11,56,21],[55,11,55,21],[55,22,55,29],[56,30,56,31],[56,33,56,35],[55,30,55,39],[51,11,52,12],[51,13,52,13],[51,14,52,16],[50,11,50,16],[36,11,36,16],[27,11,28,12],[27,13,28,13],[27,14,28,16],[26,11,26,16],[70,1,71,39],[14,11,14,16],[19,17,20,39],[27,17,28,39],[37,17,38,39],[51,17,52,39],[60,23,60,26],[36,20,36,39],[25,29,25,33],[57,22,57,24],[32,11,32,15],[17,11,17,17],[47,11,47,39],[48,11,48,39],[33,11,33,15],[41,30,41,39],[41,11,41,21],[42,11,42,21],[43,1,43,10]]}
[null,null,null,null,null,null,null,null,null,null,null,null,null,null,null,null,null,null,null,null,null,null,null,null,null,null,null,null,null,null,null,null,null,null,null,null,null,null,null,null,null,null,null,null,null,null,null,null,null,null,null,null,null,null,null,null,null,null,null,null,null,null,null,1]
[null,null,"NA51",null,null,null,"2025年度マンションすまい・る債　積立申込書（兼 送付先指定依頼書）"]
[]
[null,null,null,"独立行政法人住宅金融支援機構　殿",null,null,null,null,null,null,null,null,null,null,null,null,null,null,null,null,null,null,null,null,null,null,null,null,"記入日：2025年",null,null,null,null,null,{"$f":"IF(入力シート!$N$6=\"\",\"\",入力シート!$N$6)","v":""},null,"月",{"$f":"IF(入力シート!$Q$6=\"\",\"\",入力シート!$Q$6)","v":""},null,"日"]
[]
[null,null,null,null,"独立行政法人住宅金融支援機構は、個人情報の保護に関する法律（平成15年法律第57号）に基づき、お客さまから提供を受けた個人情報をマンションすまい・る債の"]
[null,null,null,"　発行に付随する業務及び次の利用目的の達成に必要な範囲で利用いたします。"]
[null,null,null,"＜利用目的＞",null,null,"・お客さまの本人確認や積立申込条件等を満たしていることの確認のため",null,null,null,null,null,null,null,null,null,null,null,null,null,null,null,null,null,null,"・債券発行のため"]
[null,null,null,"　",null,null,"・期日管理等継続的な取引における管理のため",null,null,null,null,null,null,null,null,null,null,null,null,null,null,null,null,null,null,"・住宅関連の情報提供のため"]
[null,null,null,null,null,null,"・法律等に基づく権利の行使や義務の履行のため",null,null,null,null,null,null,null,null,null,null,null,null,null,null,null,null,null,null,"・市場調査や分析・統計の実施のため"]
[null,null,null,null,null,null,"・アンケートの実施等による機構に関連する商品やサービスの研究・開発のため",null,null,null,null,null,null,null,null,null,null,null,null,null,null,null,null,null,null,"・マンション共用部分リフォーム融資利用時の保証料適用のため"]
[]
[null,"商品の種類",null,null,null,null,null,null,null,null,null,{"$f":"IF(入力シート!$H$8=\"\",\"\",入力シート!$H$8)","v":""}]
[null,null,null,"認定日",null,null,null,null,null,null,null,"（西暦）",null,{"$f":"IF(入力シート!$B$9=\"入力不要\",\"---\",入力シート!$K$9)","v":"---"},null,"年",null,{"$f":"IF(入力シート!$B$9=\"入力不要\",\"---\",入力シート!$N$9)","v":"---"},null,"月",null,{"$f":"IF(入力シート!$B$9=\"入力不要\",\"---\",入力シート!$Q$9)","v":"---"},null,"日",null,"◀上記選択欄で「1.」を選択した場合のみ記入願います。"]
[null,"マンション管理組合\nの名称等",null,"積立組合番号",null,null,null,null,null,null,null,{"$f":"IF(入力シート!$H$11=\"\",\"\",入力シート!$H$11)","v":""},null,null,null,null,null,"◀既に積立てを行っている管理組合が応募する場合は必ず記入してください。"]
[null,null,null,"マンション管理組合の\n名称",null,null,null,null,null,null,null,"（ﾌﾘｶﾞﾅ）",null,null,{"$f":"IF(入力シート!$N$13=\"\",\"\",入力シート!$N$13)","v":""}]
[null,null,null,null,null,null,null,null,null,null,null,{"$f":"IF(入力シート!$N$14=\"\",\"\",入力シート!$N$14)","v":""}]
[null,null,null,"法人登記の有無",null,null,null,null,null,null,null,{"$f":"IF(入力シート!$K$16=\"\",\"\",入力シート!$K$16)","v":""},null,null,null,null,null,null,"住所コード（記入不要）"]
[null,null,null,"マンションの\n所在地",null,null,null,null,null,null,null,"郵便番号",null,null,null,null,null,"(ﾌﾘｶﾞﾅ)",null,null,{"$f":"入力シート!$T$19&入力シート!$T$21","v":""}]
[null,null,null,null,null,null,null,null,null,null,null,{"$f":"IF(入力シート!$P$18=\"\",\"\",入力シート!$P$18)","v":""},null,"－",{"$f":"IF(入力シート!$S$18=\"\",\"\",入力シート!$S$18)","v":""},null,null,{"$f":"入力シート!$T$20&入力シート!$T$22","v":""}]
[]
[null,null,null,null,null,null,null,null,null,null,null,"(ﾌﾘｶﾞﾅ)",null,null,{"$f":"IF(入力シート!$T$23=\"\",\"\",入力シート!$T$23)","v":""}]
[null,null,null,null,null,null,null,null,null,null,null,"区町村名\n番地",null,null,{"$f":"IF(入力シート!$T$24=\"\",\"\",入力シート!$T$24)","v":""}]
[null,"マンション管理組合の\n代表者等",null,"代表者氏名",null,null,null,null,null,null,null,"(ﾌﾘｶﾞﾅ)",null,null,{"$f":"IF(入力シート!$N$26=\"\",\"\",入力シート!$N$26)","v":""},null,null,null,null,null,null,null,null,null,null,null,null,null,null,"任期（期間）",null,null,null,null,{"$f":"IF(入力シート!$K$29=\"\",\"\",入力シート!$K$29)","v":""},null,null,null,"年間"]
[null,null,null,null,null,null,null,null,null,null,null,{"$f":"IF(入力シート!$N$27=\"\",\"\",入力シート!$N$27)","v":""}]
[null,null,null,null,null,null,null,null,null,null,null,null,null,null,null,null,null,null,null,null,null,null,null,null,null,null,null,null,null,"集会（定期総会）\nの開催月",null,null,null,null,"毎年",null,{"$f":"IF(入力シート!$M$30=\"\",\"\",入力シート!$M$30)","v":""},null,"月頃"]
[null,null,null,"代表者の住所",null,null,null,null,null,null,null,"郵便番号",null,null,null,null,null,"(ﾌﾘｶﾞﾅ)",null,null,{"$f":"入力シート!$T$33&入力シート!$T$35","v":""}]
[null,null,null,null,null,null,null,null,null,null,null,{"$f":"IF(入力シート!$P$32=\"\",\"\",入力シート!$P$32)","v":""},null,"－",{"$f":"IF(入力シート!$S$32=\"\",\"\",入力シート!$S$32)","v":""},null,null,{"$f":"入力シート!$T$34&入力シート!$T$36","v":""}]
[]
[null,null,null,null,null,null,null,null,null,null,null,"(ﾌﾘｶﾞﾅ)",null,null,null,null,{"$f":"IF(入力シート!$T$37=\"\",\"\",入力シート!$T$37)","v":""}]
[null,null,null,null,null,null,null,null,null,null,null,"区町村名番地",null,null,null,null,{"$f":"IF(入力シート!$T$38=\"\",\"\",入力シート!$T$38)","v":""}]
[null,null,null,null,null,null,null,null,null,null,null,"(ﾌﾘｶﾞﾅ)",null,null,null,null,{"$f":"IF(OR(入力シート!$CF$39=1,入力シート!$T$39=\"\"),\"\",入力シート!$T$39)","v":""}]
[null,null,null,null,null,null,null,null,null,null,null,"マンション名称\n・号室等",null,null,null,null,{"$f":"IF(OR(入力シート!$CF$40=1,入力シート!$T$40=\"\"),\"\",入力シート!$T$40)","v":""}]
[null,null,null,"電話番号",null,null,null,null,null,null,null,{"$f":"IF(入力シート!$P$41=\"\",\"\",入力シート!$P$41)","v":""},null,null,null,null,"－",{"$f":"IF(入力シート!$T$41=\"\",\"\",入力シート!$T$41)","v":""},null,null,null,"－",{"$f":"IF(入力シート!$X$41=\"\",\"\",入力シート!$X$41)","v":""}]
[null,"管理会社等の連絡先",null,null,null,null,null,null,null,null,null,"管理会社名　※管理会社がない場合は管理組合事務室等"]
[null,null,null,null,null,null,null,null,null,null,null,{"$f":"IF(入力シート!$P$43=\"\",\"\",入力シート!$P$43)","v":""}]
[null,null,null,null,null,null,null,null,null,null,null,"郵便番号",null,null,null,null,null,"(ﾌﾘｶﾞﾅ)",null,null,{"$f":"入力シート!$T$45&入力シート!$T$47","v":""}]
[null,null,null,null,null,null,null,null,null,null,null,{"$f":"IF(入力シート!$P$44=\"\",\"\",入力シート!$P$44)","v":""},null,"－",{"$f":"IF(入力シート!$S$44=\"\",\"\",入力シート!$S$44)","v":""},null,null,{"$f":"入力シート!$T$46&入力シート!$T$48","v":""}]
[]
[null,null,null,null,null,null,null,null,null,null,null,"(ﾌﾘｶﾞﾅ)",null,null,null,{"$f":"IF(入力シート!$T$49=\"\",\"\",入力シート!$T$49)","v":""}]
[null,null,null,null,null,null,null,null,null,null,null,"区町村名\n番地",null,null,null,{"$f":"IF(入力シート!$T$50=\"\",\"\",入力シート!$T$50)","v":""}]
[null,null,null,null,null,null,null,null,null,null,null,"担当部署名",null,null,null,null,null,null,null,null,null,null,"担当者名",null,null,null,null,null,null,null,"電話番号"]
[null,null,null,null,null,null,null,null,null,null,null,{"$f":"IF(入力シート!$P$51=\"\",\"\",入力シート!$P$51)","v":""},null,null,null,null,null,null,null,null,null,null,{"$f":"IF(入力シート!$P$52=\"\",\"\",入力シート!$P$52)","v":""},null,null,null,null,null,null,null,{"$f":"IF(入力シート!$P$53=\"\",\"\",入力シート!$P$53)","v":""},null,"－",{"$f":"IF(入力シート!$T$53=\"\",\"\",入力シート!$T$53)","v":""},null,null,"－",{"$f":"IF(入力シート!$X$53=\"\",\"\",入力シート!$X$53)","v":""}]
[null,"送付先指定",null,null,null,null,null,null,null,null,null,{"$f":"IF(入力シート!$P$55=\"\",\"\",入力シート!$P$55)","v":""}]
[null,null,null,null,null,"　管理会社を書類の送付先に指定する場合は、『「マンションすまい・る債のご案内」２章の７』を確認し、記載事項を承認します。（文頭の□に☑してください。）"]
[null,null,null,"送付先指定する書類の種類",null,null,null,null,null,null,null,{"$f":"IF(OR(入力シート!$K$57=\"入力不要\",入力シート!$P$57=\"\"),\"\",入力シート!$P$57)","v":""}]
[null,null,null,"書類の送付先",null,null,null,null,null,null,null,{"$f":"IF(OR(入力シート!$K$58=\"入力不要\",入力シート!$P$58=\"\"),\"\",入力シート!$P$58)","v":""}]
[null,null,null,null,"書類の送付先と\nする管理会社の\n住所等\n（上記選択欄で「2.」を選択した場合のみ記入願います）",null,null,null,null,null,null,"管理会社名"]
[null,null,null,null,null,null,null,null,null,null,null,{"$f":"IF(OR(入力シート!$K$59=\"入力不要\",入力シート!$P$59=\"\"),\"\",入力シート!$P$59)","v":""}]
[null,null,null,null,null,null,null,null,null,null,null,"（管理事務室・管理事務所を送付先とすることはできません。）"]
[null,null,null,null,null,null,null,null,null,null,null,"郵便番号",null,null,null,null,null,"(ﾌﾘｶﾞﾅ)",null,null,{"$f":"IF(入力シート!$K$61=\"入力不要\",\"\",入力シート!$T$61&入力シート!$T$63)","v":""}]
[null,null,null,null,null,null,null,null,null,null,null,{"$f":"IF(OR(入力シート!$K$60=\"入力不要\",入力シート!$P$60=\"\"),\"\",入力シート!$P$60)","v":""},null,"－",{"$f":"IF(OR(入力シート!$K$60=\"入力不要\",入力シート!$S$60=\"\"),\"\",入力シート!$S$60)","v":""},null,null,{"$f":"IF(入力シート!$K$61=\"入力不要\",\"\",入力シート!$T$62&入力シート!$T$64&入力シート!$X$64)","v":""}]
[]
[null,null,null,null,null,null,null,null,null,null,null,"(ﾌﾘｶﾞﾅ)",null,null,null,{"$f":"IF(OR(入力シート!$K$65=\"入力不要\",入力シート!$T$65=\"\"),\"\",入力シート!$T$65)","v":""}]
[null,null,null,null,null,null,null,null,null,null,null,"区町村名\n番地",null,null,null,{"$f":"IF(OR(入力シート!$K$65=\"入力不要\",入力シート!$T$66=\"\"),\"\",入力シート!$T$66)","v":""}]
[null,null,null,null,null,null,null,null,null,null,null,"担当部署名",null,null,null,null,null,null,null,null,null,null,"担当者名",null,null,null,null,null,null,null,"電話番号"]
[null,null,null,null,null,null,null,null,null,null,null,{"$f":"IF(OR(入力シート!$K$67=\"入力不要\",入力シート!$P$67=\"\"),\"\",入力シート!$P$67)","v":""},null,null,null,null,null,null,null,null,null,null,{"$f":"IF(OR(入力シート!$K$68=\"入力不要\",入力シート!$P$68=\"\"),\"\",入力シート!$P$68)","v":""},null,null,null,null,null,null,null,{"$f":"IF(OR(入力シート!$K$69=\"入力不要\",入力シート!$P$69=\"\"),\"\",入力シート!$P$69)","v":""},null,"－",{"$f":"IF(OR(入力シート!$K$69=\"入力不要\",入力シート!$T$69=\"\"),\"\",入力シート!$T$69)","v":""},null,null,"－",{"$f":"IF(OR(入力シート!$K$69=\"入力不要\",入力シート!$X$69=\"\"),\"\",入力シート!$X$69)","v":""}]
[null,"その他",null,"棟数",null,{"$f":"IF(入力シート!$P$71=\"\",\"\",入力シート!$P$71)","v":""},null,"棟","階数",null,{"$f":"IF(入力シート!$P$72=\"\",\"\",入力シート!$P$72)","v":""},null,"階","戸数",null,{"$f":"IF(入力シート!$P$73=\"\",\"\",入力シート!$P$73)","v":""},null,"戸","入居世帯数",null,null,null,{"$f":"IF(入力シート!$P$74=\"\",\"\",入力シート!$P$74)","v":""},null,null,"世帯",null,"長期修繕計画期間"]
[null,null,null,"次回大規模修繕工事の予定時期",null,null,null,null,null,null,null,null,null,"令和",null,null,{"$f":"IF(入力シート!$Y$75=\"\",\"\",入力シート!$Y$75)","v":""},null,"年",null,{"$f":"IF(OR(入力シート!$Y$75=\"未定\",入力シート!$AB$75=\"\"),\"\",入力シート!$AB$75)","v":""},null,"月頃",null,null,null,null,{"$f":"IF(入力シート!$P$81=\"\",\"\",入力シート!$P$81)","v":""}]
[null,null,null,null,null,null,null,null,null,null,null,null,null,null,null,null,null,null,null,null,null,null,null,null,null,null,null,"積立口数の考え方"]
[null,null,null,"マンションの竣工時期",null,null,null,null,null,null,null,null,null,{"$f":"IF(入力シート!$P$76=\"\",\"\",入力シート!$P$76)","v":""},null,null,null,null,null,null,{"$f":"IF(入力シート!$T$76=\"\",\"\",入力シート!$T$76)","v":""},null,null,"年",null,null,null,{"$f":"IF(入力シート!$P$80=\"\",\"\",入力シート!$P$80)","v":""}]
[null,null,null,"積立ての理由",null,null,null,null,null,null,null,null,null,{"$f":"IF(入力シート!$P$77=\"\",\"\",入力シート!$P$77)","v":""}]
[null,null,null,"今回の募集の情報入手先",null,null,null,null,null,null,null,null,null,{"$f":"IF(入力シート!$P$78=\"\",\"\",入力シート!$P$78)","v":""}]
[null,null,null,null,null,null,null,null,null,null,null,null,null,{"$f":"IF(入力シート!$P$79=\"\",\"\",入力シート!$P$79)","v":""}]
[]
[null,"１回あたりの積立希望口数\n及び積立希望金額\n（既に積立てを行っている管理組合は今回応募\nする口数及び金額のみ記入してください）",null,null,null,null,null,null,null,null,null,{"$f":"IF(入力シート!$P$83=\"\",\"\",入力シート!$P$83)","v":""},null,null,null,"口",null,null,null,"残高証明書の\n送付希望月\n決算月の翌月をご指定いただくと便利です。\n（例）決算月：３月→送付希望月：４月",null,null,null,null,null,null,null,"毎年",null,{"$f":"IF(入力シート!$M$87=\"\",\"\",入力シート!$M$87)","v":""},null,"月"]
[]
[null,null,null,null,null,null,null,null,null,null,null,{"$f":"IF(入力シート!$P$84=\"\",\"\",入力シート!$P$84)","v":""},null,null,null,"万円"]
[]
[]
[null,"　「マンションすまい・る債のご案内」及び別添チラシの内容を了承し、マンションすまい・る債の応募要件を確認した上で、\n上記のとおり積立申込み（応募）をします。"]

{"sheet":"入力方法等のご案内","index":2,"n_rows":49,"n_cols":5,"rows_kept":49,"cut":false,"hidden":false,"merged":[[48,3,52,11],[1,1,2,12],[29,3,39,11]]}
[]
[null,"本ツールの入力方法やご注意点に関するご案内"]
[]
[]
[null,"１　入力方法"]
[null,null,"①　「入力シート」の各項目に入力をお願いします。"]
[null,null,"　　プルダウンリストから選択いただく項目と直接入力いただく項目があります。"]
[null,null,"　　入力セルの色分けは次のとおりです。"]
[]
[null,null,null,null,"必ず入力いただく項目です。"]
[null,null,null,null,"当てはまる場合のみ入力いただく項目です。"]
[null,null,null,null,"入力不要です。"]
[]
[null,null,"②　全ての項目の入力が終わりましたら、「エラーチェック」ボタンを押してください。"]
[null,null,"　②－１　エラーがある場合"]
[null,null,"　　セルが赤く反転するとともに、エラーメッセージが表示されます。"]
[null,null,"　　内容をご確認いただき、追加入力や修正をお願いします。"]
[null,null,"　　追加入力等が終わりましたら、再度「エラーチェック」ボタンを押し、エラーの有無をご確認ください。"]
[null,null,"　②－２　エラーがない場合"]
[null,null,"　　「エラー項目はありません。（以下略）」というメッセージが表示されます。"]
[]
[null,null,"③　エラーがない場合、「出力シート」の「印刷」ボタンを押して印刷してください。積立申込書が２枚出力されます。"]
[null,null,"　　（応募書類送付時に使用する封筒欄において、「任意の封筒」を選択された場合は、「宛先兼チェックリスト」もあわせて印刷されます。）"]
[]
[null,null,"④　再度内容をご確認いただき、印刷された２枚のうち１枚を管理規約の写し・代表権等確認書類とともに、"]
[null,null,"　以下の郵送先にご郵送ください。"]
[null,null,"　※管理計画認定マンション向け商品をお申し込みいただく場合は、上記に加え、認定通知書（写）もご郵送ください。"]
[null,null,"　※もう１枚はお手元にて大切に保管してください。"]
[]
[null,null,null,"＜郵送先＞　〒１１２－８５７０\n　　　　　　東京都文京区後楽１丁目４番１０号\n　　　　　　住宅金融支援機構住宅債券事務センター\n\n＜本ツールに関するお問合せ＞　\n　０３－５８００－９４７９（通話料金がかかります。）\n　　営業時間　９：００～１７：００（土日、祝日、年末年始は休業）"]
[]
[]
[]
[]
[]
[]
[]
[]
[]
[]
[]
[]
[null,"２　ご注意点"]
[null,null,"①「エラーチェック」ボタンを押し、エラーがない状態でないと印刷できません。"]
[null,null,"②入力項目によっては、文字数制限があります。"]
[null,null,"③送付先指定制度については「送付先指定について」のシートをご参照ください。"]
[null,null,"④入力いただくセル以外は、加工・編集ができません。ご了承ください。"]
[]
[null,null,null,"上記以外のご注意点\n○本ツールは、『住宅金融支援機構「マンションすまい・る債」積立申込書兼送付先指定依頼書（以下「積立\n　申込書」といいます。）』作成のためのサポートツールです。本ツールは、積立申込書の完全性を保証する\n　ものではありませんので、積立申込書提出に当たっては、貴組合で十分内容のチェックをお願いします。\n○独立行政法人住宅金融支援機構は、因果関係の有無にかかわらず、本ツールの使用により発生した損害、\n　逸失利益等一切の不利益について責任を負いません。"]

{"sheet":"送付先指定について","index":3,"n_rows":54,"n_cols":3,"rows_kept":54,"cut":false,"hidden":false,"merged":[[3,1,5,12],[32,1,48,12],[53,1,62,12]]}
[]
[]
[]
[null,"　住宅金融支援機構等から送付する書類は、あらかじめ届け出られた管理組合の代表者の方（理事長等）あてに送付しますが、「送付先指定」をしていただくことにより、送付先をご担当の管理会社に変更することができます。"]
[]
[]
[]
[]
[]
[]
[]
[]
[]
[]
[]
[]
[]
[]
[]
[]
[]
[]
[]
[]
[null,null,"*管理計画認定マンション向けマンションすまい・る債の場合のみ"]
[]
[null,null,"※上記書類以外に機構から送らせていただくお知らせは送付先指定の対象外です。"]
[null,null,"　マンション管理情報誌「マンション情報ＢＯＸ」は、原則として管理組合宛てに送付します。"]
[]
[]
[]
[]
[null,"　①「送付先指定」に当たっては、送付先として指定する管理会社の了解を得ていただくようお願いします（管理事務\n　　室・管理事務所を送付先とすることはできません。）。\n　②「送付先指定」の届出内容（送付先及び送付先住所）に変更があった場合には、直ちに変更後の内容を届出くださ\n　　い（担当者名のみ変更となる場合は、ご提出いただく必要はありません。）。\n　※「送付先指定」の届出後に代表者の方の変更があった場合は、同依頼書の再提出は不要ですが、「登録内容の変更\n　　届出書」による変更手続は必要です（代表者変更手続については、機構のホームページをご覧ください。）。\n　③指定できる送付先は、１つの積立組合（積立組合番号）につき１箇所です。\n　④同一の積立組合（積立組合番号）が複数の積立てを行っている場合においても、「送付先指定」を１つしていただ\n　　くことにより、全ての積立てに係る送付先が変更となります。\n　⑤既に積立てを行っている管理組合が新たに応募する場合、既に指定した内容に変更がなければ、「送付先指定」を\n　　していただく必要はありません。\n　⑥送付先を指定する対象書類については、「全ての書類」又は「残高証明書及び買入計算書のみ」の選択が可能で\n　　す。\n　⑦送付先変更の手続完了に関するお知らせは送付しませんので、書類の到着をもってご確認ください。\n　⑧送付先指定に当たっては、下記の承認事項について承認いただきます。"]
[]
[]
[]
[]
[]
[]
[]
[]
[]
[]
[]
[]
[]
[]
[]
[]
[]
[]
[]
[]
[null,"　・送付先指定について万が一将来紛議が生じましても、機構及び事務受託銀行は責任を負わないことを確認します。\n　・送付先指定に当たっては管理会社の了解を得ていることを確認します。\n　・送付先に変更があった場合は、直ちに変更後の内容を送付先指定依頼書により申請します。ただし、合併等による\n　　管理会社名の変更や管理会社の事務所移転等により、送付先とする住所等について変更が明らかであると機構が把\n　　握した際は、積立組合への確認を行わず、機構が把握した送付先に書類の送付先を変更できるものとします。\n　・送付先の変更依頼を行わなかったことにより生じた損害（送付先の変更依頼を機構に届け出ておらず、機構が第三\n　　者に書類を送付したことにより積立組合が負う損害等）について、機構及び事務受託銀行は責任を負わないことを\n　　確認します。\n　・本依頼書受領後、システム反映が完了するまでの間は変更前の送付先に届く可能性があることを了承します。"]

{"sheet":"宛先兼チェックリスト","index":4,"n_rows":52,"n_cols":31,"rows_kept":52,"cut":false,"hidden":false,"merged":[[40,0,40,15],[39,16,40,36],[35,4,37,32],[6,19,29,20],[7,16,33,17],[3,1,7,4],[0,0,0,7],[12,3,33,4],[21,1,33,2],[7,30,33,31],[39,0,39,15],[50,16,51,36],[51,0,51,15],[47,0,47,15],[48,0,49,15],[41,0,42,15],[43,0,44,15],[46,0,46,15],[45,0,45,15],[50,0,50,15],[42,16,43,36],[44,16,45,36],[46,16,47,36],[48,16,49,36],[41,16,41,36]]}
["（宛先兼チェックリスト）"]
[]
[]
[null,"郵便切手\nを貼付して\nください"]
[]
[]
[null,null,null,null,null,null,null,null,null,null,null,null,null,null,null,null,null,null,null,"住宅金融支援機構"]
[null,null,null,null,null,null,null,null,null,null,null,null,null,null,null,null,"住宅債券事務センター行",null,null,null,null,null,null,null,null,null,null,null,null,null,"東\n京\n都\n文\n京\n区\n後\n楽\n１\n丁\n目\n４\n番\n10\n号"]
[]
[]
[]
[]
[null,null,null,"マンションすまい・る債"]
[]
[]
[]
[]
[]
[]
[]
[]
[null,"応募書類在中"]
[]
[]
[]
[]
[]
[]
[]
[]
[]
[]
[]
[]
[]
[null,null,null,null,"ご郵送に関しては、「簡易書留郵便」等により確実に送付していただく方法をお勧めします。\n期限に余裕をもってご送付くださいますようお願いします。"]
[]
[]
[]
["マンション管理組合名",null,null,null,null,null,null,null,null,null,null,null,null,null,null,null,"【封入書類のチェックリスト】\n封入した書類をチェック（þ）してください。"]
[{"$f":"IF(入力シート!$N$14=\"\",\"\",入力シート!$N$14)","v":""}]
["この書類に関する問合せ先\n（書類に不備があった場合等の連絡先）"]
[null,null,null,null,null,null,null,null,null,null,null,null,null,null,null,null,"　　　□ 積立申込書兼送付先指定依頼書（１部）"]
["（※）代表者以外の方が問合せ先となる場合のみご記入ください。"]
[null,null,null,null,null,null,null,null,null,null,null,null,null,null,null,null,"　※ □ 管理規約（全文）（コピー可）"]
["問合せ先名称（管理会社・管理事務室等）"]
[{"$f":"IF(入力シート!$P$91=ﾌﾟﾙﾀﾞｳﾝﾘｽﾄ!$F$24,\"（代表者と同じ）\",IF(入力シート!$P$91=ﾌﾟﾙﾀﾞｳﾝﾘｽﾄ!$F$25,入力シート!$P$43,IF(入力シート!$P$92=\"\",\"\",入力シート!$P$92)))","v":""},null,null,null,null,null,null,null,null,null,null,null,null,null,null,null,"　※ □ 総会議事録（コピー可）等（代表権等が確認できる書類）"]
["住所"]
[{"$f":"IF(入力シート!$P$91=ﾌﾟﾙﾀﾞｳﾝﾘｽﾄ!$F$24,\"（代表者と同じ）\",IF(入力シート!$P$91=ﾌﾟﾙﾀﾞｳﾝﾘｽﾄ!$F$25,入力シート!$T$46&入力シート!$T$48&入力シート!$T$50,IF(入力シート!$P$93=\"\",\"\",入力シート!$P$93)))","v":""},null,null,null,null,null,null,null,null,null,null,null,null,null,null,null,{"$f":"IF(入力シート!$H$8=ﾌﾟﾙﾀﾞｳﾝﾘｽﾄ!$H$6,\"\",\"      □ 認定通知書（コピー可）\")","v":"      □ 認定通知書（コピー可）"}]
[]
["電話番号",null,null,null,null,null,null,null,null,null,null,null,null,null,null,null,"※既に積立てを行っている管理組合で、代表者の変更がない等の場合、\n　 添付書類を省略することができます。詳しくは「マンションすまい・る債の\n　 ご案内」をご覧ください。"]
[{"$f":"IF(入力シート!$P$91=ﾌﾟﾙﾀﾞｳﾝﾘｽﾄ!$F$24,\"（代表者と同じ）\",IF(入力シート!$P$91=ﾌﾟﾙﾀﾞｳﾝﾘｽﾄ!$F$25,入力シート!$P$53&\"-\"&入力シート!$T$53&\"-\"&入力シート!$X$53,IF(入力シート!$P$94=\"\",\"\",入力シート!$P$94&\"-\"&入力シート!$T$94&\"-\"&入力シート!$X$94)))","v":""}]

{"sheet":"入力例","index":5,"n_rows":103,"n_cols":84,"rows_kept":103,"cut":false,"hidden":false,"merged":[[7,39,9,67],[8,1,8,6],[8,7,8,9],[8,10,8,11],[8,13,8,14],[8,16,8,17],[1,1,3,12],[1,15,1,19],[2,15,2,19],[3,15,3,19],[5,1,5,6],[5,7,5,12],[5,13,5,14],[5,16,5,17],[10,1,10,6],[10,7,10,12],[12,1,13,9],[12,10,12,12],[12,13,12,37],[13,10,13,12],[13,13,13,37],[7,1,7,6],[7,7,7,27],[18,25,19,46],[19,15,19,18],[19,19,19,24],[20,10,21,14],[20,15,20,18],[20,19,20,24],[21,15,21,18],[21,19,21,24],[15,1,15,9],[15,10,15,13],[17,1,23,9],[17,10,17,14],[17,15,17,16],[17,18,17,20],[18,10,19,14],[18,15,18,18],[18,19,18,24],[22,10,23,14],[22,15,22,18],[22,19,22,41],[23,15,23,18],[23,19,23,41],[25,1,26,9],[25,10,25,12],[25,13,25,22],[26,10,26,12],[26,13,26,22],[31,15,31,16],[31,18,31,20],[32,10,33,14],[32,15,32,18],[32,19,32,24],[32,25,33,46],[33,15,33,18],[33,19,33,24],[28,1,28,9],[28,10,28,13],[29,1,29,9],[29,10,29,11],[29,12,29,13],[31,1,40,9],[31,10,31,14],[34,10,35,14],[38,10,39,14],[38,15,38,18],[38,19,38,41],[39,15,39,18],[39,19,39,41],[40,10,40,14],[40,15,40,17],[40,19,40,21],[40,23,40,25],[34,15,34,18],[34,19,34,24],[35,15,35,18],[35,19,35,24],[36,10,37,14],[36,15,36,18],[36,19,36,41],[37,15,37,18],[37,19,37,41],[45,15,45,18],[45,19,45,24],[46,10,47,14],[46,15,46,18],[46,19,46,24],[47,15,47,18],[47,19,47,24],[42,1,52,9],[42,10,42,14],[42,15,42,28],[43,10,43,14],[43,15,43,16],[43,18,43,20],[44,10,45,14],[44,15,44,18],[44,19,44,24],[44,25,45,46],[51,10,51,14],[51,15,51,28],[52,10,52,14],[52,15,52,17],[52,19,52,21],[52,23,52,25],[48,10,49,14],[48,15,48,18],[48,19,48,41],[49,15,49,18],[49,19,49,41],[50,10,50,14],[50,15,50,28],[54,1,68,9],[54,10,54,14],[54,15,54,41],[55,10,55,14],[55,15,55,16],[56,10,56,14],[56,15,56,28],[57,10,57,14],[57,15,57,28],[58,10,58,14],[58,15,58,28],[59,10,59,14],[59,15,59,16],[59,18,59,20],[60,10,61,14],[60,15,60,18],[60,19,60,24],[60,25,61,46],[61,15,61,18],[61,19,61,24],[66,10,66,14],[66,15,66,28],[67,10,67,14],[67,15,67,28],[68,10,68,14],[68,15,68,17],[68,19,68,21],[68,23,68,25],[62,10,63,14],[62,15,62,18],[62,19,62,24],[63,15,63,18],[63,19,63,24],[64,10,65,14],[64,15,64,18],[64,19,64,41],[65,15,65,18],[65,19,65,41],[76,10,76,14],[76,15,76,30],[77,10,78,14],[77,15,77,30],[77,31,78,43],[78,15,78,30],[74,21,74,23],[74,24,74,25],[74,27,74,28],[75,10,75,14],[75,15,75,18],[75,19,75,20],[74,10,74,20],[85,1,85,9],[85,10,85,11],[85,12,85,13],[86,1,86,9],[86,10,86,11],[86,12,86,13],[79,10,79,14],[79,15,79,30],[80,10,80,14],[80,15,80,22],[82,1,83,9],[82,10,82,14],[82,15,82,18],[83,10,83,14],[83,15,83,18],[70,1,80,9],[70,10,70,14],[70,15,70,17],[71,10,71,14],[71,15,71,17],[72,10,72,14],[72,15,72,17],[73,10,73,14],[73,15,73,17],[93,10,93,14],[93,15,93,17],[93,19,93,21],[93,23,93,25],[102,7,102,33],[87,32,89,54],[88,1,88,9],[88,10,88,22],[90,1,93,9],[90,10,90,14],[90,15,90,30],[91,10,91,14],[91,15,91,30],[92,10,92,14],[92,15,92,38]]}
[null,null,null,null,null,null,null,null,null,null,null,null,null,null,null,null,null,null,null,null,null,null,null,null,null,null,null,null,null,null,null,null,null,null,null,null,null,null,null,null,null,null,null,null,null,null,null,null,null,null,null,null,null,null,null,null,null,null,null,null,null,null,null,0]
[null,"入力シート",null,null,null,null,null,null,null,null,null,null,null,null,null,null,null,null,null,null,"黄色のセルは必ず入力いただく項目です。"]
[null,null,null,null,null,null,null,null,null,null,null,null,null,null,null,null,null,null,null,null,"オレンジ色のセルは、当てはまる場合のみ入力いただく項目です。"]
[null,null,null,null,null,null,null,null,null,null,null,null,null,null,null,null,null,null,null,null,"セルが黒く反転した場合は、入力不要です。"]
[]
[null,"記入日",null,null,null,null,null,"2025年",null,null,null,null,null,5,null,"月",31,null,"日","←プルダウンから選択してください。"]
[]
[null,"商品の種類",null,null,null,null,null,"0.通常商品（10年満期時年平均利率（税引前）：0.525％）",null,null,null,null,null,null,null,null,null,null,null,null,null,null,null,null,null,null,null,null,"←プルダウンから選択してください。",null,null,null,null,null,null,null,null,null,null,{"$f":"IF($H$8=\"1.管理計画認定マンション向け商品（10年満期時年平均利率：0.408％）\",\"「1.管理計画認定マンション向け商品（10年満期時年平均利率：0.408％）」を選択された場合、　地方公共団体が発行した「認定通知書」の写しも提出いただく必要があります。\",\"\")","v":""}]
[null,{"$f":"IF($H$8=\"1.管理計画認定マンション向け商品（10年満期時年平均利率（税引前）：0.550％）\",\"認定日\",\"入力不要\")","v":"入力不要"},null,null,null,null,null,"（西暦）",null,null,2023,null,"年",4,null,"月",30,null,"日","←管理計画認定マンションの場合、認定日をプルダウンから入力願います。"]
[]
[null,"積立組合番号",null,null,null,null,null,333333,null,null,null,null,null,"←既に積立てを行っている管理組合が応募する場合は必ず入力願います（「3」から始まる6桁の番号）。"]
[]
[null,"マンション管理組合の名称",null,null,null,null,null,null,null,null,"フリガナ",null,null,"ｷｺｳﾏﾝｼｮﾝｶﾝﾘｸﾐｱｲ",null,null,null,null,null,null,null,null,null,null,null,null,null,null,null,null,null,null,null,null,null,null,null,null,"←80文字以下で入力願います。"]
[null,null,null,null,null,null,null,null,null,null,"漢字等",null,null,"機構マンション管理組合",null,null,null,null,null,null,null,null,null,null,null,null,null,null,null,null,null,null,null,null,null,null,null,null,"←40文字以下で入力願います。"]
[]
[null,"法人登記の有無",null,null,null,null,null,null,null,null,"1.あり",null,null,null,"←プルダウンから選択してください。"]
[]
[null,"マンションの所在地\n（住居表示上の住所）",null,null,null,null,null,null,null,null,"郵便番号",null,null,null,null,112,null,"－",8570]
[null,null,null,null,null,null,null,null,null,null,"都道府県",null,null,null,null,"フリガナ",null,null,null,{"$f":"IF(P18=\"\",\"\",VLOOKUP(TEXT(P18,\"000\"),郵便番号!$A$1:$C$948,3,0))","v":"ﾄｳｷｮｳﾄ"},null,null,null,null,null,"←郵便番号（上３桁）から自動表示されます。\n   自動表示される都道府県名が異なる場合は、お手数ですが、直接入力願います。"]
[null,null,null,null,null,null,null,null,null,null,null,null,null,null,null,"漢字等",null,null,null,{"$f":"IF(P18=\"\",\"\",VLOOKUP(TEXT(P18,\"000\"),郵便番号!$A$1:$C$948,2,0))","v":"東京都"}]
[null,null,null,null,null,null,null,null,null,null,"市・区・郡",null,null,null,null,"フリガナ",null,null,null,"ﾌﾞﾝｷｮｳｸ"]
[null,null,null,null,null,null,null,null,null,null,null,null,null,null,null,"漢字等",null,null,null,"文京区"]
[null,null,null,null,null,null,null,null,null,null,"区町村名・番地",null,null,null,null,"フリガナ",null,null,null,"ｺｳﾗｸ1-4-10"]
[null,null,null,null,null,null,null,null,null,null,null,null,null,null,null,"漢字等",null,null,null,"後楽１－４－１０",null,null,null,null,null,null,null,null,null,null,null,null,null,null,null,null,null,null,null,null,null,null,"←23文字以下で入力願います。"]
[]
[null,"代表者氏名",null,null,null,null,null,null,null,null,"フリガナ",null,null,"ｷｺｳ ﾀﾛｳ",null,null,null,null,null,null,null,null,null," ←「姓名」の間にスペース（半角）を入力のうえ、20文字以下で入力願います。"]
[null,null,null,null,null,null,null,null,null,null,"漢字等",null,null,"機構　太郎",null,null,null,null,null,null,null,null,null," ←「姓名」の間にスペース（全角）を入力のうえ、15文字以下で入力願います。"]
[]
[null,"代表者の任期（期間）",null,null,null,null,null,null,null,null,1,null,null,null,"年間",null,"←プルダウンから選択してください。"]
[null,"集会（定期総会の開催月）",null,null,null,null,null,null,null,null,"毎年",null,7,null,"月頃",null,"←プルダウンから選択してください。"]
[]
[null,"\n\n\n代表者の住所等\n（住居表示上の住所）",null,null,null,null,null,null,null,null,"郵便番号",null,null,null,null,112,null,"－",8570]
[null,null,null,null,null,null,null,null,null,null,"都道府県",null,null,null,null,"フリガナ",null,null,null,{"$f":"IF(P32=\"\",\"\",VLOOKUP(TEXT(P32,\"000\"),郵便番号!$A$1:$C$948,3,0))","v":"ﾄｳｷｮｳﾄ"},null,null,null,null,null,"←郵便番号（上３桁）から自動表示されます。\n   自動表示される都道府県名が異なる場合は、お手数ですが、直接入力願います。"]
[null,null,null,null,null,null,null,null,null,null,null,null,null,null,null,"漢字等",null,null,null,{"$f":"IF(P32=\"\",\"\",VLOOKUP(TEXT(P32,\"000\"),郵便番号!$A$1:$C$948,2,0))","v":"東京都"}]
[null,null,null,null,null,null,null,null,null,null,"市・区・郡",null,null,null,null,"フリガナ",null,null,null,"ﾌﾞﾝｷｮｳｸ"]
[null,null,null,null,null,null,null,null,null,null,null,null,null,null,null,"漢字等",null,null,null,"文京区"]
[null,null,null,null,null,null,null,null,null,null,"区町村名・番地",null,null,null,null,"フリガナ",null,null,null,"ｺｳﾗｸ1-4-10"]
[null,null,null,null,null,null,null,null,null,null,null,null,null,null,null,"漢字等",null,null,null,"後楽１－４－１０",null,null,null,null,null,null,null,null,null,null,null,null,null,null,null,null,null,null,null,null,null,null,"←23文字以下で入力願います。"]
[null,null,null,null,null,null,null,null,null,null,"マンション名称\n・号室等",null,null,null,null,"フリガナ",null,null,null,"ｷｺｳﾏﾝｼｮﾝ404ｺﾞｳ",null,null,null,null,null,null,null,null,null,null,null,null,null,null,null,null,null,null,null,null,null,null,null,null,null,null,null,null,null,null,null,null,null,null,null,null,null,null,null,null,null,null,null,null,null,null,null,null,null,null,null,null,null,null,null,null,null,null,null,null,null,null,null,{"$f":"IF(T39=\"ｺﾀﾞﾃ\",1,0)","v":0}]
[null,null,null,null,null,null,null,null,null,null,null,null,null,null,null,"漢字等",null,null,null,"機構マンション４０４号",null,null,null,null,null,null,null,null,null,null,null,null,null,null,null,null,null,null,null,null,null,null,"←23文字以下で入力願います。なお、戸建てにお住まいの場合は、ﾌﾘｶﾞﾅ欄にｺﾀﾞﾃ、漢字等欄に戸建てと入力願います。",null,null,null,null,null,null,null,null,null,null,null,null,null,null,null,null,null,null,null,null,null,null,null,null,null,null,null,null,null,null,null,null,null,null,null,null,null,null,null,null,{"$f":"IF(T40=\"戸建て\",1,0)","v":0}]
[null,null,null,null,null,null,null,null,null,null,"電話番号",null,null,null,null,"03",null,null,"－","5800",null,null,"－","8049"]
[]
[null,"管理会社等の連絡先",null,null,null,null,null,null,null,null,"管理会社名",null,null,null,null,"株式会社機構コミュニティ",null,null,null,null,null,null,null,null,null,null,null,null,null,null,"←管理会社がない場合は管理組合事務室等を入力願います。23文字以下で入力願います。"]
[null,null,null,null,null,null,null,null,null,null,"郵便番号",null,null,null,null,541,null,"－",8546]
[null,null,null,null,null,null,null,null,null,null,"都道府県",null,null,null,null,"フリガナ",null,null,null,{"$f":"IF($P$44=\"\",\"\",VLOOKUP(TEXT($P$44,\"000\"),郵便番号!$A$1:$C$948,3,0))","v":"ｵｵｻｶﾌ"},null,null,null,null,null,"←郵便番号（上３桁）から自動表示されます。\n   自動表示される都道府県名が異なる場合は、お手数ですが、直接入力願います。"]
[null,null,null,null,null,null,null,null,null,null,null,null,null,null,null,"漢字等",null,null,null,{"$f":"IF($P$44=\"\",\"\",VLOOKUP(TEXT($P$44,\"000\"),郵便番号!$A$1:$C$948,2,0))","v":"大阪府"}]
[null,null,null,null,null,null,null,null,null,null,"市・区・郡",null,null,null,null,"フリガナ",null,null,null,"ｵｵｻｶｼ"]
[null,null,null,null,null,null,null,null,null,null,null,null,null,null,null,"漢字等",null,null,null,"大阪市"]
[null,null,null,null,null,null,null,null,null,null,"区町村名・番地",null,null,null,null,"フリガナ",null,null,null,"ﾁｭｳｵｳｸﾐﾅﾐﾎﾝﾏﾁ4-5-20",null,null,null,null,null,null,null,null,null,null,null,null,null,null,null,null,null,null,null,null,null,null,"←23文字以下で入力願います。"]
[null,null,null,null,null,null,null,null,null,null,null,null,null,null,null,"漢字等",null,null,null,"中央区南本町４－５－２０",null,null,null,null,null,null,null,null,null,null,null,null,null,null,null,null,null,null,null,null,null,null,"←23文字以下で入力願います。"]
[null,null,null,null,null,null,null,null,null,null,"担当部署名",null,null,null,null,"大阪支店　会計部",null,null,null,null,null,null,null,null,null,null,null,null,null,"←15文字以下で入力願います。"]
[null,null,null,null,null,null,null,null,null,null,"担当者名",null,null,null,null,"機構　次郎",null,null,null,null,null,null,null,null,null,null,null,null,null," ←「姓名」の間にスペース（全角）を入力願います。8文字以下で入力願います。"]
[null,null,null,null,null,null,null,null,null,null,"電話番号",null,null,null,null,"06",null,null,"－","6281",null,null,"－","9266",null,null,"←可能な限り固定電話番号を入力願います。"]
[]
[null,"送付先指定関係\n\n（管理事務室・管理事務所を送付先とすることはできません。）",null,null,null,null,null,null,null,null,"送付先指定の種類",null,null,null,null,"2.送付先を管理会社に指定しない（＝送付先は管理組合代表者宛とする）",null,null,null,null,null,null,null,null,null,null,null,null,null,null,null,null,null,null,null,null,null,null,null,null,null,null,"←プルダウンから選択してください。なお、過去に購入した債券（すべて）の残高がゼロの場合は、必ず「1.」、または「2.」を選択してください。\n"]
[null,null,null,null,null,null,null,null,null,null,{"$f":"IF(OR($P$55=ﾌﾟﾙﾀﾞｳﾝﾘｽﾄ!$H$3,$P$55=ﾌﾟﾙﾀﾞｳﾝﾘｽﾄ!$H$4),\"入力不要\",\"資料の確認及び承認\")","v":"入力不要"},null,null,null,null,null,null,"←ひとつ上の選択欄で「1.」を選択した場合、　　　　　　　　　　　　　　　　　　　　　を確認し、末尾記載の事項を承認願います。確認・承認いただけた場合、左の□をクリックし、☑を入力してください。"]
[null,null,null,null,null,null,null,null,null,null,{"$f":"IF(OR($P$55=ﾌﾟﾙﾀﾞｳﾝﾘｽﾄ!$H$3,$P$55=ﾌﾟﾙﾀﾞｳﾝﾘｽﾄ!$H$4),\"入力不要\",\"書類の種類\")","v":"入力不要"},null,null,null,null,null,null,null,null,null,null,null,null,null,null,null,null,null,null,"←プルダウンから選択してください（２つ上の選択欄で「1.」を選択した場合のみ）。"]
[null,null,null,null,null,null,null,null,null,null,{"$f":"IF(OR($P$55=ﾌﾟﾙﾀﾞｳﾝﾘｽﾄ!$H$3,$P$55=ﾌﾟﾙﾀﾞｳﾝﾘｽﾄ!$H$4),\"入力不要\",\"書類の送付先\")","v":"入力不要"},null,null,null,null,null,null,null,null,null,null,null,null,null,null,null,null,null,null,"←プルダウンから選択してください（３つ上の選択欄で「1.」を選択した場合のみ）。"]
[null,null,null,null,null,null,null,null,null,null,{"$f":"IF(OR($P$55=ﾌﾟﾙﾀﾞｳﾝﾘｽﾄ!$H$3,$P$55=ﾌﾟﾙﾀﾞｳﾝﾘｽﾄ!$H$4,$P$58=\"1.上記記載の管理会社の連絡先と同じ\"),\"入力不要\",\"管理会社名\")","v":"入力不要"},null,null,null,null,null,null,null,null,null,null,null,null,null,null,null,null,null,null,"←以下の項目は、ひとつ上の選択欄で「2.」を選択した場合のみ入力願います。23文字以下で入力願います。"]
[null,null,null,null,null,null,null,null,null,null,{"$f":"IF(OR($P$55=ﾌﾟﾙﾀﾞｳﾝﾘｽﾄ!$H$3,$P$55=ﾌﾟﾙﾀﾞｳﾝﾘｽﾄ!$H$4,$P$58=\"1.上記記載の管理会社の連絡先と同じ\"),\"入力不要\",\"郵便番号\")","v":"入力不要"},null,null,null,null,null,null,"－"]
[null,null,null,null,null,null,null,null,null,null,{"$f":"IF(OR($P$55=ﾌﾟﾙﾀﾞｳﾝﾘｽﾄ!$H$3,$P$55=ﾌﾟﾙﾀﾞｳﾝﾘｽﾄ!$H$4,$P$58=\"1.上記記載の管理会社の連絡先と同じ\"),\"入力不要\",\"都道府県\")","v":"入力不要"},null,null,null,null,"フリガナ",null,null,null,null,null,null,null,null,null,"←郵便番号（上３桁）から自動表示されます。\n   自動表示される都道府県名が異なる場合は、お手数ですが、直接入力願います。"]
[null,null,null,null,null,null,null,null,null,null,null,null,null,null,null,"漢字等"]
[null,null,null,null,null,null,null,null,null,null,{"$f":"IF(OR($P$55=ﾌﾟﾙﾀﾞｳﾝﾘｽﾄ!$H$3,$P$55=ﾌﾟﾙﾀﾞｳﾝﾘｽﾄ!$H$4,$P$58=\"1.上記記載の管理会社の連絡先と同じ\"),\"入力不要\",\"市・区・郡\")","v":"入力不要"},null,null,null,null,"フリガナ"]
[null,null,null,null,null,null,null,null,null,null,null,null,null,null,null,"漢字等"]
[null,null,null,null,null,null,null,null,null,null,{"$f":"IF(OR($P$55=ﾌﾟﾙﾀﾞｳﾝﾘｽﾄ!$H$3,$P$55=ﾌﾟﾙﾀﾞｳﾝﾘｽﾄ!$H$4,$P$58=\"1.上記記載の管理会社の連絡先と同じ\"),\"入力不要\",\"区町村名番地\")","v":"入力不要"},null,null,null,null,"フリガナ"]
[null,null,null,null,null,null,null,null,null,null,null,null,null,null,null,"漢字等"]
[null,null,null,null,null,null,null,null,null,null,{"$f":"IF(OR($P$55=ﾌﾟﾙﾀﾞｳﾝﾘｽﾄ!$H$3,$P$55=ﾌﾟﾙﾀﾞｳﾝﾘｽﾄ!$H$4,$P$58=\"1.上記記載の管理会社の連絡先と同じ\"),\"入力不要\",\"担当部署名\")","v":"入力不要"},null,null,null,null,null,null,null,null,null,null,null,null,null,null,null,null,null,null,"←23文字以下で入力願います。"]
[null,null,null,null,null,null,null,null,null,null,{"$f":"IF(OR($P$55=ﾌﾟﾙﾀﾞｳﾝﾘｽﾄ!$H$3,$P$55=ﾌﾟﾙﾀﾞｳﾝﾘｽﾄ!$H$4,$P$58=\"1.上記記載の管理会社の連絡先と同じ\"),\"入力不要\",\"担当者名\")","v":"入力不要"},null,null,null,null,null,null,null,null,null,null,null,null,null,null,null,null,null,null," ←「姓名」の間にスペース（全角）を入力願います。15文字以下で入力願います。"]
[null,null,null,null,null,null,null,null,null,null,{"$f":"IF(OR($P$55=ﾌﾟﾙﾀﾞｳﾝﾘｽﾄ!$H$3,$P$55=ﾌﾟﾙﾀﾞｳﾝﾘｽﾄ!$H$4,$P$58=\"1.上記記載の管理会社の連絡先と同じ\"),\"入力不要\",\"電話番号\")","v":"入力不要"},null,null,null,null,"",null,null,"－","",null,null,"－","",null,null,"←可能な限り固定電話番号を入力願います。"]
[]
[null,"その他",null,null,null,null,null,null,null,null,"棟数",null,null,null,null,1,null,null,"棟","←マンションの棟数を入力してください。"]
[null,null,null,null,null,null,null,null,null,null,"階数",null,null,null,null,8,null,null,"階","←マンションの階数（地下階を含む）を入力してください（複数棟ある場合は、平均の階数（小数点以下四捨五入）を入力してください。）。"]
[null,null,null,null,null,null,null,null,null,null,"戸数",null,null,null,null,82,null,null,"戸","←マンションの全住宅戸数を入力してください（複数棟ある場合は、複数棟全体の住宅戸数を入力してください。）。"]
[null,null,null,null,null,null,null,null,null,null,"入居世帯数",null,null,null,null,77,null,null,"世帯",null,"←マンションの入居世帯数を入力してください（複数棟ある場合は、複数棟全体の入居世帯数を入力してください。）。"]
[null,null,null,null,null,null,null,null,null,null,"次回大規模修繕工事の予定時期",null,null,null,null,null,null,null,null,null,null,"令和",null,null,10,null,"年",9,null,"月頃",null,"←「年」「月」はプルダウンから選択してください。ただし、未定の場合は「年」のプルダウンから「未定」を選択してください。"]
[null,null,null,null,null,null,null,null,null,null,"マンションの竣工時期",null,null,null,null,"平成",null,null,null,29,null,"年","←「元号」はプルダウンから選択してください。"]
[null,null,null,null,null,null,null,null,null,null,"積立ての理由",null,null,null,null,"ｱ．機構発行の債券で安心・安全だから",null,null,null,null,null,null,null,null,null,null,null,null,null,null,null,"←プルダウンから選択してください。"]
[null,null,null,null,null,null,null,null,null,null,"今回の募集の\n情報入手先",null,null,null,null,"ｶ．マンション管理会社からの紹介",null,null,null,null,null,null,null,null,null,null,null,null,null,null,null,"←プルダウンから選択してください（１つまたは２つ）。"]
[]
[null,null,null,null,null,null,null,null,null,null,"積立口数の考え方",null,null,null,null,"ｱ．１年あたりの修繕積立金額の範囲内で積み立てる",null,null,null,null,null,null,null,null,null,null,null,null,null,null,null,"←プルダウンから選択してください。"]
[null,null,null,null,null,null,null,null,null,null,"長期修繕計画期間",null,null,null,null,"ｲ．30年以上",null,null,null,null,null,null,null,"←プルダウンから選択してください。"]
[]
[null,"1回あたりの積立希望口数\n及び積立希望金額",null,null,null,null,null,null,null,null,"口数",null,null,null,null,24,null,null,null,"口"]
[null,null,null,null,null,null,null,null,null,null,"金額",null,null,null,null,{"$f":"IF(P83=\"\",\"\",P83*50)","v":1200},null,null,null,"万円",null,"←1口50万円として自動計算します。"]
[]
[null,"管理組合の決算月",null,null,null,null,null,null,null,null,"毎年",null,1,null,"月末",null,"←プルダウンから選択してください。　"]
[null,"残高証明書の送付月",null,null,null,null,null,null,null,null,"毎年",null,{"$f":"IF($M$86=\"\",\"\",IF(M86=12,1,M86+1))","v":2},null,"月",null,"←管理組合の決算月の翌月が残高証明書の送付月となります（自動表示されます）。"]
[null,null,null,null,null,null,null,null,null,null,null,null,null,null,null,null,null,null,null,null,null,null,null,null,null,null,null,null,null,null,null,null,{"$f":"IF(K89=\"2.任意の封筒（宅配便等を含む。）\",\"「2.任意の封筒（宅配便等を含む。）」を選択された場合、「宛先兼チェックリスト」もあわせて印刷されます。問合せ先名称等を入力の上、封筒の表面に貼付してご郵送願います。\",\"\")","v":"「2.任意の封筒（宅配便等を含む。）」を選択された場合、「宛先兼チェックリスト」もあわせて印刷されます。問合せ先名称等を入力の上、封筒の表面に貼付してご郵送願います。"}]
[null,"応募書類送付時に使用する封筒",null,null,null,null,null,null,null,null,"2.任意の封筒（宅配便等を含む。）",null,null,null,null,null,null,null,null,null,null,null,null,"←プルダウンから選択してください。"]
[]
[null,"提出書類に関する\n機構からの問合せ先\n\n（任意の封筒を利用される際に必要な\n「宛先兼チェックリスト」に反映されます）",null,null,null,null,null,null,null,null,{"$f":"IF($K$89=ﾌﾟﾙﾀﾞｳﾝﾘｽﾄ!$F$21,\"入力不要\",\"お選びください→\")","v":"お選びください→"},null,null,null,null,"1.問合せ先は上記記載の「代表者」と同じ",null,null,null,null,null,null,null,null,null,null,null,null,null,null,null,"←プルダウンから選択してください。"]
[null,null,null,null,null,null,null,null,null,null,{"$f":"IF(OR($K$89=ﾌﾟﾙﾀﾞｳﾝﾘｽﾄ!$F$21,$P$91=ﾌﾟﾙﾀﾞｳﾝﾘｽﾄ!$F$24,$P$91=ﾌﾟﾙﾀﾞｳﾝﾘｽﾄ!$F$25),\"入力不要\",\"名称\")","v":"入力不要"}]
[null,null,null,null,null,null,null,null,null,null,{"$f":"IF(OR($K$89=ﾌﾟﾙﾀﾞｳﾝﾘｽﾄ!$F$21,$P$91=ﾌﾟﾙﾀﾞｳﾝﾘｽﾄ!$F$24,$P$91=ﾌﾟﾙﾀﾞｳﾝﾘｽﾄ!$F$25),\"入力不要\",\"住所\")","v":"入力不要"}]
[null,null,null,null,null,null,null,null,null,null,{"$f":"IF(OR($K$89=ﾌﾟﾙﾀﾞｳﾝﾘｽﾄ!$F$21,$P$91=ﾌﾟﾙﾀﾞｳﾝﾘｽﾄ!$F$24,$P$91=ﾌﾟﾙﾀﾞｳﾝﾘｽﾄ!$F$25),\"入力不要\",\"電話番号\")","v":"入力不要"},null,null,null,null,"",null,null,"－","",null,null,"－",""]
[]
[]
[null,"入力項目は以上です。入力もれがないかどうか、↓の「エラーチェック」ボタンを押して、ご確認ください。"]
[]
[]
[]
[]
[]
[null,null,null,null,null,null,null,"エラーチェック後、入力もれ等がある場合は、セルが赤く反転します。ご確認をお願いします。"]

{"sheet":"【参考】将来の受取利息額","index":6,"n_rows":28,"n_cols":19,"rows_kept":28,"cut":false,"hidden":false,"merged":[[13,18,13,23],[14,1,14,5],[14,14,14,17],[14,18,14,23],[13,14,13,17],[14,6,14,9],[13,1,13,5],[13,6,13,9],[13,10,13,13],[14,10,14,13],[1,1,1,23],[10,2,10,7],[11,2,11,7],[10,8,10,11],[11,8,11,11],[10,12,10,13],[11,12,11,13],[8,2,8,7],[8,8,8,23],[10,14,11,23],[19,14,19,17],[22,18,22,23],[19,10,19,13],[20,10,20,13],[20,1,20,5],[22,6,22,9],[20,14,20,17],[19,18,19,23],[20,18,20,23],[21,18,21,23],[19,6,19,9],[20,6,20,9],[19,1,19,5],[17,1,17,5],[18,1,18,5],[16,10,16,13],[15,1,15,5],[16,1,16,5],[15,6,15,9],[16,6,16,9],[17,6,17,9],[18,6,18,9],[15,18,15,23],[16,18,16,23],[17,18,17,23],[18,18,18,23],[17,10,17,13],[18,10,18,13],[15,14,15,17],[16,14,16,17],[17,14,17,17],[18,14,18,17],[15,10,15,13],[23,18,23,23],[24,18,24,23],[24,1,24,9],[21,14,21,17],[22,14,22,17],[23,14,23,17],[24,14,24,17],[23,10,23,13],[24,10,24,13],[21,1,21,5],[22,1,22,5],[23,1,23,5],[21,10,21,13],[22,10,22,13],[23,6,23,9],[21,6,21,9]]}
[]
[null,"将来の受取利息額（概算）について 【2025年度発行債券】"]
[]
[null,null,"　満期まで毎年１回定期的にご指定いただいた口座に、マンションすまい・る債の利息をお振り込みします。"]
[null,null,"　今年度発行債券の満期までの単年利率と応募いただいた口数の受取利息額（概算）は下表のとおりです。"]
[null,null,"　なお、債券の利息は源泉分離課税の適用となり、所得税及び復興特別所得税の合計15.315％（2025年1月末"]
[null,null,"現在の税率）相当額を差し引いてお支払いします（満期日後の利息は付きません。）。"]
[]
[null,null,"商 品 の 種 類",null,null,null,null,null,{"$f":"入力シート!$H$8","v":0}]
[]
[null,null,"応　募　口　数",null,null,null,null,null,{"$f":"入力シート!$P$83","v":0},null,null,null,"口",null," ※応募口数は「入力シート」下方の「１回あたりの積立希望\n 　 口数」の「口数」欄に入力してください。"]
[null,null,"応　募　金　額",null,null,null,null,null,{"$f":"入力シート!$P$84","v":""},null,null,null,"万円"]
[]
[null,"経過年数\n（受取時期）",null,null,null,null,"単年利率",null,null,null,"毎年の\n受取利息額※１\n（税引前）\nＡ",null,null,null,"所得税及び\n復興特別所得税\n（15.315％※２）\nＢ",null,null,null,"毎年の\n受取利息額\n（税引後）\nＡ－Ｂ"]
[null,"1年目\n（2027年2月）",null,null,null,null,{"$f":"IF($I$9=ﾌﾟﾙﾀﾞｳﾝﾘｽﾄ!$H$6,単年利率入力!$C3,IF($I$9=ﾌﾟﾙﾀﾞｳﾝﾘｽﾄ!$H$7,単年利率入力!$D3,\"0%\"))","v":"0%"},null,null,null,{"$f":"ROUNDDOWN(500000*G15,0)*$I$11","v":0},null,null,null,{"$f":"ROUNDDOWN(500000*G15*0.15315,0)*$I$11","v":0},null,null,null,{"$f":"K15-O15","v":0}]
[null,"2年目\n（2028年2月）",null,null,null,null,{"$f":"IF($I$9=ﾌﾟﾙﾀﾞｳﾝﾘｽﾄ!$H$6,単年利率入力!$C4,IF($I$9=ﾌﾟﾙﾀﾞｳﾝﾘｽﾄ!$H$7,単年利率入力!$D4,\"0%\"))","v":"0%"},null,null,null,{"$f":"ROUNDDOWN(500000*G16,0)*$I$11","v":0},null,null,null,{"$f":"ROUNDDOWN(500000*G16*0.15315,0)*$I$11","v":0},null,null,null,{"$f":"K16-O16","v":0}]
[null,"3年目\n（2029年2月）",null,null,null,null,{"$f":"IF($I$9=ﾌﾟﾙﾀﾞｳﾝﾘｽﾄ!$H$6,単年利率入力!$C5,IF($I$9=ﾌﾟﾙﾀﾞｳﾝﾘｽﾄ!$H$7,単年利率入力!$D5,\"0%\"))","v":"0%"},null,null,null,0,null,null,null,0,null,null,null,0]
[null,"4年目\n（2030年2月）",null,null,null,null,{"$f":"IF($I$9=ﾌﾟﾙﾀﾞｳﾝﾘｽﾄ!$H$6,単年利率入力!$C6,IF($I$9=ﾌﾟﾙﾀﾞｳﾝﾘｽﾄ!$H$7,単年利率入力!$D6,\"0%\"))","v":"0%"},null,null,null,0,null,null,null,0,null,null,null,0]
[null,"5年目\n（2031年2月）",null,null,null,null,{"$f":"IF($I$9=ﾌﾟﾙﾀﾞｳﾝﾘｽﾄ!$H$6,単年利率入力!$C7,IF($I$9=ﾌﾟﾙﾀﾞｳﾝﾘｽﾄ!$H$7,単年利率入力!$D7,\"0%\"))","v":"0%"},null,null,null,0,null,null,null,0,null,null,null,0]
[null,"6年目\n（2032年2月）",null,null,null,null,{"$f":"IF($I$9=ﾌﾟﾙﾀﾞｳﾝﾘｽﾄ!$H$6,単年利率入力!$C8,IF($I$9=ﾌﾟﾙﾀﾞｳﾝﾘｽﾄ!$H$7,単年利率入力!$D8,\"0%\"))","v":"0%"},null,null,null,0,null,null,null,0,null,null,null,0]
[null,"7年目\n（2033年2月）",null,null,null,null,{"$f":"IF($I$9=ﾌﾟﾙﾀﾞｳﾝﾘｽﾄ!$H$6,単年利率入力!$C9,IF($I$9=ﾌﾟﾙﾀﾞｳﾝﾘｽﾄ!$H$7,単年利率入力!$D9,\"0%\"))","v":"0%"},null,null,null,0,null,null,null,0,null,null,null,0]
[null,"8年目\n（2034年2月）",null,null,null,null,{"$f":"IF($I$9=ﾌﾟﾙﾀﾞｳﾝﾘｽﾄ!$H$6,単年利率入力!$C10,IF($I$9=ﾌﾟﾙﾀﾞｳﾝﾘｽﾄ!$H$7,単年利率入力!$D10,\"0%\"))","v":"0%"},null,null,null,0,null,null,null,0,null,null,null,0]
[null,"9年目\n（2035年2月）",null,null,null,null,{"$f":"IF($I$9=ﾌﾟﾙﾀﾞｳﾝﾘｽﾄ!$H$6,単年利率入力!$C11,IF($I$9=ﾌﾟﾙﾀﾞｳﾝﾘｽﾄ!$H$7,単年利率入力!$D11,\"0%\"))","v":"0%"},null,null,null,0,null,null,null,0,null,null,null,0]
[null,"10年目\n（2036年2月）",null,null,null,null,{"$f":"IF($I$9=ﾌﾟﾙﾀﾞｳﾝﾘｽﾄ!$H$6,単年利率入力!$C12,IF($I$9=ﾌﾟﾙﾀﾞｳﾝﾘｽﾄ!$H$7,単年利率入力!$D12,\"0%\"))","v":"0%"},null,null,null,0,null,null,null,0,null,null,null,0]
[null,"合計",null,null,null,null,null,null,null,null,{"$f":"SUM(K15:N24)","v":0},null,null,null,{"$f":"SUM(O15:R24)","v":0},null,null,null,{"$f":"SUM(S15:X24)","v":0}]
[]
[null,"※１　受取利息額（税引前）は、債券の発行時に将来分を含めて確定します。"]
[null,"※２　今後の税率等は、変更される可能性があります。詳しくは、最寄りの税務署等にお問合せください。"]

{"sheet":"単年利率入力","index":7,"n_rows":12,"n_cols":4,"rows_kept":12,"cut":false,"hidden":true,"merged":[]}
[]
[null,null,"通常","認定"]
[null,"1年目",1E-4,{"$f":"C3+0.0005","v":6.0000000000000006E-4}]
[null,"2年目",6.4000000000000005E-4,{"$f":"C4+0.0005","v":1.14E-3}]
[null,"3年目",1.1800000000000001E-3,1.6800000000000001E-3]
[null,"4年目",1.72E-3,2.2199999999999998E-3]
[null,"5年目",2.31E-3,2.81E-3]
[null,"6年目",4.1900000000000001E-3,4.6899999999999997E-3]
[null,"7年目",7.92E-3,8.4200000000000004E-3]
[null,"8年目",9.7000000000000003E-3,1.0200000000000001E-2]
[null,"9年目",1.1480000000000001E-2,1.1980000000000001E-2]
[null,"10年目",1.3259999999999999E-2,1.376E-2]

{"sheet":"ﾌﾟﾙﾀﾞｳﾝﾘｽﾄ","index":8,"n_rows":61,"n_cols":64,"rows_kept":61,"cut":false,"hidden":true,"merged":[]}
[null,null,null,null,null,null,null,null,null,null,null,null,"↓2022年度の文言",null,null,null,null,null,null,null,null,null,null,null,null,null,null,null,null,null,null,null,null,null,null,null,null,null,null,null,null,null,null,null,null,null,null,null,null,null,null,null,null,null,null,null,null,null,null,null,null,null,null,1]
[null,"0.なし",1,"昭和","ｱ．機構発行の債券で安心・安全だから","1.送付先指定する",null,"1.送付先を管理会社に指定する（既にご利用中の組合が、送付先を変更する場合もこちら）","←セル位置を変えないように",null,null,null,"1.送付先指定する（既にご利用中の組合が、送付先を変更する場合もこちら）"]
[null,"1.あり",2,"平成","ｲ．利回りが良いから","2.送付先指定しない（すでに送付先指定している）",null,"2.送付先を管理会社に指定しない（＝送付先は管理組合代表者宛とする）","←セル位置を変えないように",null,null,null,"2.送付先指定しない（既にご利用中の組合が、送付先指定を中止する場合もこちら）"]
[null,null,3,"令和","ｳ．マンション管理に役立つ特典があるから",null,null,"3.既に送付先を管理会社に指定していて、そのまま利用する","←セル位置を変えないように",null,null,null,"3.既に送付先を指定していて、そのまま利用する"]
[null,"都",4,null,"ｴ．共用部分リフォーム融資の金利引下げがあるから"]
[null,"道",5,null,null,null,null,"0.通常商品（10年満期時年平均利率（税引前）：0.525％）","←セル位置を変えないように",null,null,null,"↓事務Ｃからの提案"]
[null,"府",6,null,"ｱ．機構説明会","別添資料を確認し、末尾記載の事項を承認します。",null,"1.管理計画認定マンション向け商品（10年満期時年平均利率（税引前）：0.575％）","←セル位置を変えないように",null,null,null,"1.送付先指定する（既にご利用いただいている組合は、既存分も変更されます）"]
[null,"県",7,null,"ｲ．機構ホームページ（インターネット広告含む）",null,null,null,null,null,null,null,"2.送付先指定しない（代表者様に送付されます）"]
[null,null,8,null,"ｳ．新聞（一般紙）","1.上記記載の管理会社の連絡先と同じ",null,null,null,null,null,null,"3.既に送付先を指定していて、そのまま利用する"]
[null,"区",9,null,"ｴ．新聞（専門紙）","2.上記記載の管理会社の連絡先ではなく、次欄記載の宛先とする"]
[null,"市",10,null,"ｵ．マンション管理センター通信"]
[null,"郡",11,null,"ｶ．マンション管理会社からの紹介","1.すべての書類"]
[null,null,12,null,"ｷ．口コミ","2.残高証明書及び買入計算書のみ"]
[null,null,13,null,"ｸ．過去に積み立てた実績がある"]
[null,null,14,null,"ｹ．その他"]
[null,null,15]
[null,null,16]
[null,"未定",17,null,"ｱ．20年以上30年未満"]
[null,7,18,null,"ｲ．30年以上"]
[null,8,19]
[null,9,20,null,"ｱ．１年あたりの修繕積立金額の範囲内で積み立てる","1.機構作成の所定の封筒","←セル位置を変えないように"]
[null,10,21,null,"ｲ．１年あたりの修繕積立金額の範囲を超えて積み立てる","2.任意の封筒（宅配便等を含む。）","←セル位置を変えないように"]
[null,11,22]
[null,12,23,null,null,"1.問合せ先は上記記載の「代表者」と同じ","←セル位置を変えないように"]
[null,13,24,null,2022,"2.問合せ先は上記記載の「管理会社等の連絡先」と同じ","←セル位置を変えないように"]
[null,14,25,null,2023,"3.問合せ先は上記記載の「管理会社等の連絡先」と異なる","←セル位置を変えないように"]
[null,15,26,null,2024]
[null,16,27,null,2025]
[null,17,28]
[null,18,29]
[null,19,30]
[null,20,31]
[null,21,32]
[null,22,33]
[null,23,34]
[null,24,35]
[null,25,36]
[null,26,37]
[null,27,38]
[null,28,39]
[null,29,40]
[null,30,41]
[null,31,42]
[null,32,43]
[null,33,44]
[null,34,45]
[null,35,46]
[null,36,47]
[null,37,48]
[null,38,49]
[null,39,50]
[null,40,51]
[null,41,52]
[null,42,53]
[null,43,54]
[null,null,55]
[null,null,56]
[null,null,57]
[null,null,58]
[null,null,59]
[null,null,60]

{"sheet":"郵便番号","index":9,"n_rows":948,"n_cols":3,"rows_kept":948,"cut":false,"hidden":true,"merged":[]}
["060","北海道","ﾎｯｶｲﾄﾞｳ"]
["064","北海道","ﾎｯｶｲﾄﾞｳ"]
["001","北海道","ﾎｯｶｲﾄﾞｳ"]
["002","北海道","ﾎｯｶｲﾄﾞｳ"]
["065","北海道","ﾎｯｶｲﾄﾞｳ"]
["007","北海道","ﾎｯｶｲﾄﾞｳ"]
["003","北海道","ﾎｯｶｲﾄﾞｳ"]
["062","北海道","ﾎｯｶｲﾄﾞｳ"]
["005","北海道","ﾎｯｶｲﾄﾞｳ"]
["061","北海道","ﾎｯｶｲﾄﾞｳ"]
["063","北海道","ﾎｯｶｲﾄﾞｳ"]
["004","北海道","ﾎｯｶｲﾄﾞｳ"]
["006","北海道","ﾎｯｶｲﾄﾞｳ"]
["040","北海道","ﾎｯｶｲﾄﾞｳ"]
["041","北海道","ﾎｯｶｲﾄﾞｳ"]
["042","北海道","ﾎｯｶｲﾄﾞｳ"]
["047","北海道","ﾎｯｶｲﾄﾞｳ"]
["048","北海道","ﾎｯｶｲﾄﾞｳ"]
["070","北海道","ﾎｯｶｲﾄﾞｳ"]
["079","北海道","ﾎｯｶｲﾄﾞｳ"]
["071","北海道","ﾎｯｶｲﾄﾞｳ"]
["078","北海道","ﾎｯｶｲﾄﾞｳ"]
["074","北海道","ﾎｯｶｲﾄﾞｳ"]
["050","北海道","ﾎｯｶｲﾄﾞｳ"]
["051","北海道","ﾎｯｶｲﾄﾞｳ"]
["085","北海道","ﾎｯｶｲﾄﾞｳ"]
["084","北海道","ﾎｯｶｲﾄﾞｳ"]
["088","北海道","ﾎｯｶｲﾄﾞｳ"]
["080","北海道","ﾎｯｶｲﾄﾞｳ"]
["089","北海道","ﾎｯｶｲﾄﾞｳ"]
["090","北海道","ﾎｯｶｲﾄﾞｳ"]
["099","北海道","ﾎｯｶｲﾄﾞｳ"]
["093","北海道","ﾎｯｶｲﾄﾞｳ"]
["091","北海道","ﾎｯｶｲﾄﾞｳ"]
["068","北海道","ﾎｯｶｲﾄﾞｳ"]
["069","北海道","ﾎｯｶｲﾄﾞｳ"]
["077","北海道","ﾎｯｶｲﾄﾞｳ"]
["053","北海道","ﾎｯｶｲﾄﾞｳ"]
["059","北海道","ﾎｯｶｲﾄﾞｳ"]
["066","北海道","ﾎｯｶｲﾄﾞｳ"]
["097","北海道","ﾎｯｶｲﾄﾞｳ"]
["098","北海道","ﾎｯｶｲﾄﾞｳ"]
["072","北海道","ﾎｯｶｲﾄﾞｳ"]
["075","北海道","ﾎｯｶｲﾄﾞｳ"]
["076","北海道","ﾎｯｶｲﾄﾞｳ"]
["067","北海道","ﾎｯｶｲﾄﾞｳ"]
["094","北海道","ﾎｯｶｲﾄﾞｳ"]
["095","北海道","ﾎｯｶｲﾄﾞｳ"]
["096","北海道","ﾎｯｶｲﾄﾞｳ"]
["087","北海道","ﾎｯｶｲﾄﾞｳ"]
["086","北海道","ﾎｯｶｲﾄﾞｳ"]
["073","北海道","ﾎｯｶｲﾄﾞｳ"]
["052","北海道","ﾎｯｶｲﾄﾞｳ"]
["044","北海道","ﾎｯｶｲﾄﾞｳ"]
["049","北海道","ﾎｯｶｲﾄﾞｳ"]
["043","北海道","ﾎｯｶｲﾄﾞｳ"]
["045","北海道","ﾎｯｶｲﾄﾞｳ"]
["046","北海道","ﾎｯｶｲﾄﾞｳ"]
["092","北海道","ﾎｯｶｲﾄﾞｳ"]
["054","北海道","ﾎｯｶｲﾄﾞｳ"]
["055","北海道","ﾎｯｶｲﾄﾞｳ"]
["057","北海道","ﾎｯｶｲﾄﾞｳ"]
["058","北海道","ﾎｯｶｲﾄﾞｳ"]
["056","北海道","ﾎｯｶｲﾄﾞｳ"]
["081","北海道","ﾎｯｶｲﾄﾞｳ"]
["082","北海道","ﾎｯｶｲﾄﾞｳ"]
["083","北海道","ﾎｯｶｲﾄﾞｳ"]
["038","青森県","ｱｵﾓﾘｹﾝ"]
["030","青森県","ｱｵﾓﾘｹﾝ"]
["039","青森県","ｱｵﾓﾘｹﾝ"]
["036","青森県","ｱｵﾓﾘｹﾝ"]
["031","青森県","ｱｵﾓﾘｹﾝ"]
["037","青森県","ｱｵﾓﾘｹﾝ"]
["034","青森県","ｱｵﾓﾘｹﾝ"]
["033","青森県","ｱｵﾓﾘｹﾝ"]
["035","青森県","ｱｵﾓﾘｹﾝ"]
["020","岩手県","ｲﾜﾃｹﾝ"]
["028","岩手県","ｲﾜﾃｹﾝ"]
["027","岩手県","ｲﾜﾃｹﾝ"]
["022","岩手県","ｲﾜﾃｹﾝ"]
["025","岩手県","ｲﾜﾃｹﾝ"]
["024","岩手県","ｲﾜﾃｹﾝ"]
["021","岩手県","ｲﾜﾃｹﾝ"]
["029","岩手県","ｲﾜﾃｹﾝ"]
["026","岩手県","ｲﾜﾃｹﾝ"]
["023","岩手県","ｲﾜﾃｹﾝ"]
["980","宮城県","ﾐﾔｷﾞｹﾝ"]
["981","宮城県","ﾐﾔｷﾞｹﾝ"]
["989","宮城県","ﾐﾔｷﾞｹﾝ"]
["982","宮城県","ﾐﾔｷﾞｹﾝ"]
["983","宮城県","ﾐﾔｷﾞｹﾝ"]
["985","宮城県","ﾐﾔｷﾞｹﾝ"]
["984","宮城県","ﾐﾔｷﾞｹﾝ"]
["986","宮城県","ﾐﾔｷﾞｹﾝ"]
["987","宮城県","ﾐﾔｷﾞｹﾝ"]
["988","宮城県","ﾐﾔｷﾞｹﾝ"]
["010","秋田県","ｱｷﾀｹﾝ"]
["011","秋田県","ｱｷﾀｹﾝ"]
["018","秋田県","ｱｷﾀｹﾝ"]
["019","秋田県","ｱｷﾀｹﾝ"]
["016","秋田県","ｱｷﾀｹﾝ"]
["013","秋田県","ｱｷﾀｹﾝ"]
["017","秋田県","ｱｷﾀｹﾝ"]
["012","秋田県","ｱｷﾀｹﾝ"]
["015","秋田県","ｱｷﾀｹﾝ"]
["014","秋田県","ｱｷﾀｹﾝ"]
["990","山形県","ﾔﾏｶﾞﾀｹﾝ"]
["999","山形県","ﾔﾏｶﾞﾀｹﾝ"]
["992","山形県","ﾔﾏｶﾞﾀｹﾝ"]
["997","山形県","ﾔﾏｶﾞﾀｹﾝ"]
["998","山形県","ﾔﾏｶﾞﾀｹﾝ"]
["996","山形県","ﾔﾏｶﾞﾀｹﾝ"]
["991","山形県","ﾔﾏｶﾞﾀｹﾝ"]
["995","山形県","ﾔﾏｶﾞﾀｹﾝ"]
["993","山形県","ﾔﾏｶﾞﾀｹﾝ"]
["994","山形県","ﾔﾏｶﾞﾀｹﾝ"]
["960","福島県","ﾌｸｼﾏｹﾝ"]
["965","福島県","ﾌｸｼﾏｹﾝ"]
["969","福島県","ﾌｸｼﾏｹﾝ"]
["963","福島県","ﾌｸｼﾏｹﾝ"]
["970","福島県","ﾌｸｼﾏｹﾝ"]
["974","福島県","ﾌｸｼﾏｹﾝ"]
["971","福島県","ﾌｸｼﾏｹﾝ"]
["973","福島県","ﾌｸｼﾏｹﾝ"]
["979","福島県","ﾌｸｼﾏｹﾝ"]
["972","福島県","ﾌｸｼﾏｹﾝ"]
["961","福島県","ﾌｸｼﾏｹﾝ"]
["962","福島県","ﾌｸｼﾏｹﾝ"]
["966","福島県","ﾌｸｼﾏｹﾝ"]
["976","福島県","ﾌｸｼﾏｹﾝ"]
["964","福島県","ﾌｸｼﾏｹﾝ"]
["975","福島県","ﾌｸｼﾏｹﾝ"]
["967","福島県","ﾌｸｼﾏｹﾝ"]
["968","福島県","ﾌｸｼﾏｹﾝ"]
["310","茨城県","ｲﾊﾞﾗｷｹﾝ"]
["319","茨城県","ｲﾊﾞﾗｷｹﾝ"]
["311","茨城県","ｲﾊﾞﾗｷｹﾝ"]
["317","茨城県","ｲﾊﾞﾗｷｹﾝ"]
["316","茨城県","ｲﾊﾞﾗｷｹﾝ"]
["300","茨城県","ｲﾊﾞﾗｷｹﾝ"]
["306","茨城県","ｲﾊﾞﾗｷｹﾝ"]
["315","茨城県","ｲﾊﾞﾗｷｹﾝ"]
["307","茨城県","ｲﾊﾞﾗｷｹﾝ"]
["301","茨城県","ｲﾊﾞﾗｷｹﾝ"]
["304","茨城県","ｲﾊﾞﾗｷｹﾝ"]
["303","茨城県","ｲﾊﾞﾗｷｹﾝ"]
["313","茨城県","ｲﾊﾞﾗｷｹﾝ"]
["318","茨城県","ｲﾊﾞﾗｷｹﾝ"]
["309","茨城県","ｲﾊﾞﾗｷｹﾝ"]
["302","茨城県","ｲﾊﾞﾗｷｹﾝ"]
["305","茨城県","ｲﾊﾞﾗｷｹﾝ"]
["312","茨城県","ｲﾊﾞﾗｷｹﾝ"]
["314","茨城県","ｲﾊﾞﾗｷｹﾝ"]
["308","茨城県","ｲﾊﾞﾗｷｹﾝ"]
["321","栃木県","ﾄﾁｷﾞｹﾝ"]
["329","栃木県","ﾄﾁｷﾞｹﾝ"]
["320","栃木県","ﾄﾁｷﾞｹﾝ"]
["326","栃木県","ﾄﾁｷﾞｹﾝ"]
["328","栃木県","ﾄﾁｷﾞｹﾝ"]
["322","栃木県","ﾄﾁｷﾞｹﾝ"]
["323","栃木県","ﾄﾁｷﾞｹﾝ"]
["327","栃木県","ﾄﾁｷﾞｹﾝ"]
["324","栃木県","ﾄﾁｷﾞｹﾝ"]
["325","栃木県","ﾄﾁｷﾞｹﾝ"]
["371","群馬県","ｸﾞﾝﾏｹﾝ"]
["370","群馬県","ｸﾞﾝﾏｹﾝ"]
["379","群馬県","ｸﾞﾝﾏｹﾝ"]
["376","群馬県","ｸﾞﾝﾏｹﾝ"]
["372","群馬県","ｸﾞﾝﾏｹﾝ"]
["373","群馬県","ｸﾞﾝﾏｹﾝ"]
["378","群馬県","ｸﾞﾝﾏｹﾝ"]
["374","群馬県","ｸﾞﾝﾏｹﾝ"]
["377","群馬県","ｸﾞﾝﾏｹﾝ"]
["375","群馬県","ｸﾞﾝﾏｹﾝ"]
["331","埼玉県","ｻｲﾀﾏｹﾝ"]
["330","埼玉県","ｻｲﾀﾏｹﾝ"]
["337","埼玉県","ｻｲﾀﾏｹﾝ"]
["338","埼玉県","ｻｲﾀﾏｹﾝ"]
["336","埼玉県","ｻｲﾀﾏｹﾝ"]
["339","埼玉県","ｻｲﾀﾏｹﾝ"]
["349","埼玉県","ｻｲﾀﾏｹﾝ"]
["350","埼玉県","ｻｲﾀﾏｹﾝ"]
["360","埼玉県","ｻｲﾀﾏｹﾝ"]
["369","埼玉県","ｻｲﾀﾏｹﾝ"]
["332","埼玉県","ｻｲﾀﾏｹﾝ"]
["334","埼玉県","ｻｲﾀﾏｹﾝ"]
["333","埼玉県","ｻｲﾀﾏｹﾝ"]
["361","埼玉県","ｻｲﾀﾏｹﾝ"]
["368","埼玉県","ｻｲﾀﾏｹﾝ"]
["359","埼玉県","ｻｲﾀﾏｹﾝ"]
["357","埼玉県","ｻｲﾀﾏｹﾝ"]
["347","埼玉県","ｻｲﾀﾏｹﾝ"]
["367","埼玉県","ｻｲﾀﾏｹﾝ"]
["355","埼玉県","ｻｲﾀﾏｹﾝ"]
["344","埼玉県","ｻｲﾀﾏｹﾝ"]
["348","埼玉県","ｻｲﾀﾏｹﾝ"]
["365","埼玉県","ｻｲﾀﾏｹﾝ"]
["366","埼玉県","ｻｲﾀﾏｹﾝ"]
["362","埼玉県","ｻｲﾀﾏｹﾝ"]
["340","埼玉県","ｻｲﾀﾏｹﾝ"]
["343","埼玉県","ｻｲﾀﾏｹﾝ"]
["335","埼玉県","ｻｲﾀﾏｹﾝ"]
["358","埼玉県","ｻｲﾀﾏｹﾝ"]
["351","埼玉県","ｻｲﾀﾏｹﾝ"]
["353","埼玉県","ｻｲﾀﾏｹﾝ"]
["352","埼玉県","ｻｲﾀﾏｹﾝ"]
["363","埼玉県","ｻｲﾀﾏｹﾝ"]
["346","埼玉県","ｻｲﾀﾏｹﾝ"]
["364","埼玉県","ｻｲﾀﾏｹﾝ"]
["354","埼玉県","ｻｲﾀﾏｹﾝ"]
["341","埼玉県","ｻｲﾀﾏｹﾝ"]
["342","埼玉県","ｻｲﾀﾏｹﾝ"]
["356","埼玉県","ｻｲﾀﾏｹﾝ"]
["345","埼玉県","ｻｲﾀﾏｹﾝ"]
["260","千葉県","ﾁﾊﾞｹﾝ"]
["262","千葉県","ﾁﾊﾞｹﾝ"]
["263","千葉県","ﾁﾊﾞｹﾝ"]
["264","千葉県","ﾁﾊﾞｹﾝ"]
["265","千葉県","ﾁﾊﾞｹﾝ"]
["266","千葉県","ﾁﾊﾞｹﾝ"]
["267","千葉県","ﾁﾊﾞｹﾝ"]
["261","千葉県","ﾁﾊﾞｹﾝ"]
["288","千葉県","ﾁﾊﾞｹﾝ"]
["272","千葉県","ﾁﾊﾞｹﾝ"]
["273","千葉県","ﾁﾊﾞｹﾝ"]
["274","千葉県","ﾁﾊﾞｹﾝ"]
["270","千葉県","ﾁﾊﾞｹﾝ"]
["294","千葉県","ﾁﾊﾞｹﾝ"]
["292","千葉県","ﾁﾊﾞｹﾝ"]
["299","千葉県","ﾁﾊﾞｹﾝ"]
["271","千葉県","ﾁﾊﾞｹﾝ"]
["278","千葉県","ﾁﾊﾞｹﾝ"]
["297","千葉県","ﾁﾊﾞｹﾝ"]
["286","千葉県","ﾁﾊﾞｹﾝ"]
["289","千葉県","ﾁﾊﾞｹﾝ"]
["287","千葉県","ﾁﾊﾞｹﾝ"]
["282","千葉県","ﾁﾊﾞｹﾝ"]
["285","千葉県","ﾁﾊﾞｹﾝ"]
["283","千葉県","ﾁﾊﾞｹﾝ"]
["275","千葉県","ﾁﾊﾞｹﾝ"]
["277","千葉県","ﾁﾊﾞｹﾝ"]
["290","千葉県","ﾁﾊﾞｹﾝ"]
["276","千葉県","ﾁﾊﾞｹﾝ"]
["296","千葉県","ﾁﾊﾞｹﾝ"]
["293","千葉県","ﾁﾊﾞｹﾝ"]
["279","千葉県","ﾁﾊﾞｹﾝ"]
["284","千葉県","ﾁﾊﾞｹﾝ"]
["295","千葉県","ﾁﾊﾞｹﾝ"]
["298","千葉県","ﾁﾊﾞｹﾝ"]
["100","東京都","ﾄｳｷｮｳﾄ"]
["102","東京都","ﾄｳｷｮｳﾄ"]
["101","東京都","ﾄｳｷｮｳﾄ"]
["103","東京都","ﾄｳｷｮｳﾄ"]
["104","東京都","ﾄｳｷｮｳﾄ"]
["105","東京都","ﾄｳｷｮｳﾄ"]
["107","東京都","ﾄｳｷｮｳﾄ"]
["106","東京都","ﾄｳｷｮｳﾄ"]
["108","東京都","ﾄｳｷｮｳﾄ"]
["135","東京都","ﾄｳｷｮｳﾄ"]
["160","東京都","ﾄｳｷｮｳﾄ"]
["162","東京都","ﾄｳｷｮｳﾄ"]
["169","東京都","ﾄｳｷｮｳﾄ"]
["161","東京都","ﾄｳｷｮｳﾄ"]
["163","東京都","ﾄｳｷｮｳﾄ"]
["112","東京都","ﾄｳｷｮｳﾄ"]
["113","東京都","ﾄｳｷｮｳﾄ"]
["110","東京都","ﾄｳｷｮｳﾄ"]
["111","東京都","ﾄｳｷｮｳﾄ"]
["130","東京都","ﾄｳｷｮｳﾄ"]
["131","東京都","ﾄｳｷｮｳﾄ"]
["136","東京都","ﾄｳｷｮｳﾄ"]
["140","東京都","ﾄｳｷｮｳﾄ"]
["142","東京都","ﾄｳｷｮｳﾄ"]
["141","東京都","ﾄｳｷｮｳﾄ"]
["152","東京都","ﾄｳｷｮｳﾄ"]
["153","東京都","ﾄｳｷｮｳﾄ"]
["144","東京都","ﾄｳｷｮｳﾄ"]
["146","東京都","ﾄｳｷｮｳﾄ"]
["145","東京都","ﾄｳｷｮｳﾄ"]
["143","東京都","ﾄｳｷｮｳﾄ"]
["154","東京都","ﾄｳｷｮｳﾄ"]
["156","東京都","ﾄｳｷｮｳﾄ"]
["157","東京都","ﾄｳｷｮｳﾄ"]
["158","東京都","ﾄｳｷｮｳﾄ"]
["155","東京都","ﾄｳｷｮｳﾄ"]
["150","東京都","ﾄｳｷｮｳﾄ"]
["151","東京都","ﾄｳｷｮｳﾄ"]
["164","東京都","ﾄｳｷｮｳﾄ"]
["165","東京都","ﾄｳｷｮｳﾄ"]
["166","東京都","ﾄｳｷｮｳﾄ"]
["167","東京都","ﾄｳｷｮｳﾄ"]
["168","東京都","ﾄｳｷｮｳﾄ"]
["170","東京都","ﾄｳｷｮｳﾄ"]
["171","東京都","ﾄｳｷｮｳﾄ"]
["114","東京都","ﾄｳｷｮｳﾄ"]
["115","東京都","ﾄｳｷｮｳﾄ"]
["116","東京都","ﾄｳｷｮｳﾄ"]
["174","東京都","ﾄｳｷｮｳﾄ"]
["175","東京都","ﾄｳｷｮｳﾄ"]
["173","東京都","ﾄｳｷｮｳﾄ"]
["176","東京都","ﾄｳｷｮｳﾄ"]
["179","東京都","ﾄｳｷｮｳﾄ"]
["178","東京都","ﾄｳｷｮｳﾄ"]
["177","東京都","ﾄｳｷｮｳﾄ"]
["120","東京都","ﾄｳｷｮｳﾄ"]
["121","東京都","ﾄｳｷｮｳﾄ"]
["123","東京都","ﾄｳｷｮｳﾄ"]
["124","東京都","ﾄｳｷｮｳﾄ"]
["125","東京都","ﾄｳｷｮｳﾄ"]
["132","東京都","ﾄｳｷｮｳﾄ"]
["134","東京都","ﾄｳｷｮｳﾄ"]
["133","東京都","ﾄｳｷｮｳﾄ"]
["192","東京都","ﾄｳｷｮｳﾄ"]
["193","東京都","ﾄｳｷｮｳﾄ"]
["190","東京都","ﾄｳｷｮｳﾄ"]
["180","東京都","ﾄｳｷｮｳﾄ"]
["181","東京都","ﾄｳｷｮｳﾄ"]
["198","東京都","ﾄｳｷｮｳﾄ"]
["183","東京都","ﾄｳｷｮｳﾄ"]
["196","東京都","ﾄｳｷｮｳﾄ"]
["182","東京都","ﾄｳｷｮｳﾄ"]
["194","東京都","ﾄｳｷｮｳﾄ"]
["195","東京都","ﾄｳｷｮｳﾄ"]
["184","東京都","ﾄｳｷｮｳﾄ"]
["187","東京都","ﾄｳｷｮｳﾄ"]
["191","東京都","ﾄｳｷｮｳﾄ"]
["189","東京都","ﾄｳｷｮｳﾄ"]
["185","東京都","ﾄｳｷｮｳﾄ"]
["186","東京都","ﾄｳｷｮｳﾄ"]
["197","東京都","ﾄｳｷｮｳﾄ"]
["201","東京都","ﾄｳｷｮｳﾄ"]
["207","東京都","ﾄｳｷｮｳﾄ"]
["204","東京都","ﾄｳｷｮｳﾄ"]
["203","東京都","ﾄｳｷｮｳﾄ"]
["208","東京都","ﾄｳｷｮｳﾄ"]
["206","東京都","ﾄｳｷｮｳﾄ"]
["205","東京都","ﾄｳｷｮｳﾄ"]
["202","東京都","ﾄｳｷｮｳﾄ"]
["188","東京都","ﾄｳｷｮｳﾄ"]
["230","神奈川県","ｶﾅｶﾞﾜｹﾝ"]
["221","神奈川県","ｶﾅｶﾞﾜｹﾝ"]
["220","神奈川県","ｶﾅｶﾞﾜｹﾝ"]
["231","神奈川県","ｶﾅｶﾞﾜｹﾝ"]
["232","神奈川県","ｶﾅｶﾞﾜｹﾝ"]
["240","神奈川県","ｶﾅｶﾞﾜｹﾝ"]
["235","神奈川県","ｶﾅｶﾞﾜｹﾝ"]
["236","神奈川県","ｶﾅｶﾞﾜｹﾝ"]
["222","神奈川県","ｶﾅｶﾞﾜｹﾝ"]
["223","神奈川県","ｶﾅｶﾞﾜｹﾝ"]
["244","神奈川県","ｶﾅｶﾞﾜｹﾝ"]
["245","神奈川県","ｶﾅｶﾞﾜｹﾝ"]
["233","神奈川県","ｶﾅｶﾞﾜｹﾝ"]
["234","神奈川県","ｶﾅｶﾞﾜｹﾝ"]
["241","神奈川県","ｶﾅｶﾞﾜｹﾝ"]
["226","神奈川県","ｶﾅｶﾞﾜｹﾝ"]
["246","神奈川県","ｶﾅｶﾞﾜｹﾝ"]
["247","神奈川県","ｶﾅｶﾞﾜｹﾝ"]
["227","神奈川県","ｶﾅｶﾞﾜｹﾝ"]
["225","神奈川県","ｶﾅｶﾞﾜｹﾝ"]
["224","神奈川県","ｶﾅｶﾞﾜｹﾝ"]
["210","神奈川県","ｶﾅｶﾞﾜｹﾝ"]
["212","神奈川県","ｶﾅｶﾞﾜｹﾝ"]
["211","神奈川県","ｶﾅｶﾞﾜｹﾝ"]
["213","神奈川県","ｶﾅｶﾞﾜｹﾝ"]
["214","神奈川県","ｶﾅｶﾞﾜｹﾝ"]
["216","神奈川県","ｶﾅｶﾞﾜｹﾝ"]
["215","神奈川県","ｶﾅｶﾞﾜｹﾝ"]
["252","神奈川県","ｶﾅｶﾞﾜｹﾝ"]
["238","神奈川県","ｶﾅｶﾞﾜｹﾝ"]
["239","神奈川県","ｶﾅｶﾞﾜｹﾝ"]
["237","神奈川県","ｶﾅｶﾞﾜｹﾝ"]
["254","神奈川県","ｶﾅｶﾞﾜｹﾝ"]
["259","神奈川県","ｶﾅｶﾞﾜｹﾝ"]
["248","神奈川県","ｶﾅｶﾞﾜｹﾝ"]
["251","神奈川県","ｶﾅｶﾞﾜｹﾝ"]
["250","神奈川県","ｶﾅｶﾞﾜｹﾝ"]
["256","神奈川県","ｶﾅｶﾞﾜｹﾝ"]
["253","神奈川県","ｶﾅｶﾞﾜｹﾝ"]
["249","神奈川県","ｶﾅｶﾞﾜｹﾝ"]
["257","神奈川県","ｶﾅｶﾞﾜｹﾝ"]
["243","神奈川県","ｶﾅｶﾞﾜｹﾝ"]
["242","神奈川県","ｶﾅｶﾞﾜｹﾝ"]
["255","神奈川県","ｶﾅｶﾞﾜｹﾝ"]
["258","神奈川県","ｶﾅｶﾞﾜｹﾝ"]
["950","新潟県","ﾆｲｶﾞﾀｹﾝ"]
["951","新潟県","ﾆｲｶﾞﾀｹﾝ"]
["956","新潟県","ﾆｲｶﾞﾀｹﾝ"]
["959","新潟県","ﾆｲｶﾞﾀｹﾝ"]
["953","新潟県","ﾆｲｶﾞﾀｹﾝ"]
["940","新潟県","ﾆｲｶﾞﾀｹﾝ"]
["954","新潟県","ﾆｲｶﾞﾀｹﾝ"]
["949","新潟県","ﾆｲｶﾞﾀｹﾝ"]
["947","新潟県","ﾆｲｶﾞﾀｹﾝ"]
["955","新潟県","ﾆｲｶﾞﾀｹﾝ"]
["945","新潟県","ﾆｲｶﾞﾀｹﾝ"]
["957","新潟県","ﾆｲｶﾞﾀｹﾝ"]
["948","新潟県","ﾆｲｶﾞﾀｹﾝ"]
["942","新潟県","ﾆｲｶﾞﾀｹﾝ"]
["958","新潟県","ﾆｲｶﾞﾀｹﾝ"]
["941","新潟県","ﾆｲｶﾞﾀｹﾝ"]
["944","新潟県","ﾆｲｶﾞﾀｹﾝ"]
["943","新潟県","ﾆｲｶﾞﾀｹﾝ"]
["952","新潟県","ﾆｲｶﾞﾀｹﾝ"]
["946","新潟県","ﾆｲｶﾞﾀｹﾝ"]
["939","富山県","ﾄﾔﾏｹﾝ"]
["930","富山県","ﾄﾔﾏｹﾝ"]
["931","富山県","ﾄﾔﾏｹﾝ"]
["933","富山県","ﾄﾔﾏｹﾝ"]
["934","富山県","ﾄﾔﾏｹﾝ"]
["937","富山県","ﾄﾔﾏｹﾝ"]
["935","富山県","ﾄﾔﾏｹﾝ"]
["936","富山県","ﾄﾔﾏｹﾝ"]
["938","富山県","ﾄﾔﾏｹﾝ"]
["932","富山県","ﾄﾔﾏｹﾝ"]
["920","石川県","ｲｼｶﾜｹﾝ"]
["921","石川県","ｲｼｶﾜｹﾝ"]
["926","石川県","ｲｼｶﾜｹﾝ"]
["929","石川県","ｲｼｶﾜｹﾝ"]
["923","石川県","ｲｼｶﾜｹﾝ"]
["928","石川県","ｲｼｶﾜｹﾝ"]
["927","石川県","ｲｼｶﾜｹﾝ"]
["922","石川県","ｲｼｶﾜｹﾝ"]
["925","石川県","ｲｼｶﾜｹﾝ"]
["924","石川県","ｲｼｶﾜｹﾝ"]
["918","福井県","ﾌｸｲｹﾝ"]
["910","福井県","ﾌｸｲｹﾝ"]
["919","福井県","ﾌｸｲｹﾝ"]
["914","福井県","ﾌｸｲｹﾝ"]
["917","福井県","ﾌｸｲｹﾝ"]
["912","福井県","ﾌｸｲｹﾝ"]
["911","福井県","ﾌｸｲｹﾝ"]
["916","福井県","ﾌｸｲｹﾝ"]
["915","福井県","ﾌｸｲｹﾝ"]
["913","福井県","ﾌｸｲｹﾝ"]
["400","山梨県","ﾔﾏﾅｼｹﾝ"]
["409","山梨県","ﾔﾏﾅｼｹﾝ"]
["403","山梨県","ﾔﾏﾅｼｹﾝ"]
["402","山梨県","ﾔﾏﾅｼｹﾝ"]
["405","山梨県","ﾔﾏﾅｼｹﾝ"]
["404","山梨県","ﾔﾏﾅｼｹﾝ"]
["401","山梨県","ﾔﾏﾅｼｹﾝ"]
["407","山梨県","ﾔﾏﾅｼｹﾝ"]
["408","山梨県","ﾔﾏﾅｼｹﾝ"]
["406","山梨県","ﾔﾏﾅｼｹﾝ"]
["381","長野県","ﾅｶﾞﾉｹﾝ"]
["380","長野県","ﾅｶﾞﾉｹﾝ"]
["388","長野県","ﾅｶﾞﾉｹﾝ"]
["389","長野県","ﾅｶﾞﾉｹﾝ"]
["399","長野県","ﾅｶﾞﾉｹﾝ"]
["390","長野県","ﾅｶﾞﾉｹﾝ"]
["386","長野県","ﾅｶﾞﾉｹﾝ"]
["394","長野県","ﾅｶﾞﾉｹﾝ"]
["395","長野県","ﾅｶﾞﾉｹﾝ"]
["392","長野県","ﾅｶﾞﾉｹﾝ"]
["382","長野県","ﾅｶﾞﾉｹﾝ"]
["384","長野県","ﾅｶﾞﾉｹﾝ"]
["396","長野県","ﾅｶﾞﾉｹﾝ"]
["383","長野県","ﾅｶﾞﾉｹﾝ"]
["398","長野県","ﾅｶﾞﾉｹﾝ"]
["391","長野県","ﾅｶﾞﾉｹﾝ"]
["385","長野県","ﾅｶﾞﾉｹﾝ"]
["387","長野県","ﾅｶﾞﾉｹﾝ"]
["393","長野県","ﾅｶﾞﾉｹﾝ"]
["397","長野県","ﾅｶﾞﾉｹﾝ"]
["500","岐阜県","ｷﾞﾌｹﾝ"]
["501","岐阜県","ｷﾞﾌｹﾝ"]
["502","岐阜県","ｷﾞﾌｹﾝ"]
["503","岐阜県","ｷﾞﾌｹﾝ"]
["506","岐阜県","ｷﾞﾌｹﾝ"]
["509","岐阜県","ｷﾞﾌｹﾝ"]
["507","岐阜県","ｷﾞﾌｹﾝ"]
["508","岐阜県","ｷﾞﾌｹﾝ"]
["505","岐阜県","ｷﾞﾌｹﾝ"]
["504","岐阜県","ｷﾞﾌｹﾝ"]
["422","静岡県","ｼｽﾞｵｶｹﾝ"]
["420","静岡県","ｼｽﾞｵｶｹﾝ"]
["421","静岡県","ｼｽﾞｵｶｹﾝ"]
["428","静岡県","ｼｽﾞｵｶｹﾝ"]
["424","静岡県","ｼｽﾞｵｶｹﾝ"]
["432","静岡県","ｼｽﾞｵｶｹﾝ"]
["430","静岡県","ｼｽﾞｵｶｹﾝ"]
["433","静岡県","ｼｽﾞｵｶｹﾝ"]
["435","静岡県","ｼｽﾞｵｶｹﾝ"]
["431","静岡県","ｼｽﾞｵｶｹﾝ"]
["434","静岡県","ｼｽﾞｵｶｹﾝ"]
["437","静岡県","ｼｽﾞｵｶｹﾝ"]
["410","静岡県","ｼｽﾞｵｶｹﾝ"]
["413","静岡県","ｼｽﾞｵｶｹﾝ"]
["411","静岡県","ｼｽﾞｵｶｹﾝ"]
["418","静岡県","ｼｽﾞｵｶｹﾝ"]
["419","静岡県","ｼｽﾞｵｶｹﾝ"]
["414","静岡県","ｼｽﾞｵｶｹﾝ"]
["427","静岡県","ｼｽﾞｵｶｹﾝ"]
["417","静岡県","ｼｽﾞｵｶｹﾝ"]
["416","静岡県","ｼｽﾞｵｶｹﾝ"]
["438","静岡県","ｼｽﾞｵｶｹﾝ"]
["425","静岡県","ｼｽﾞｵｶｹﾝ"]
["436","静岡県","ｼｽﾞｵｶｹﾝ"]
["426","静岡県","ｼｽﾞｵｶｹﾝ"]
["412","静岡県","ｼｽﾞｵｶｹﾝ"]
["415","静岡県","ｼｽﾞｵｶｹﾝ"]
["439","静岡県","ｼｽﾞｵｶｹﾝ"]
["464","愛知県","ｱｲﾁｹﾝ"]
["461","愛知県","ｱｲﾁｹﾝ"]
["462","愛知県","ｱｲﾁｹﾝ"]
["451","愛知県","ｱｲﾁｹﾝ"]
["452","愛知県","ｱｲﾁｹﾝ"]
["453","愛知県","ｱｲﾁｹﾝ"]
["450","愛知県","ｱｲﾁｹﾝ"]
["460","愛知県","ｱｲﾁｹﾝ"]
["466","愛知県","ｱｲﾁｹﾝ"]
["467","愛知県","ｱｲﾁｹﾝ"]
["456","愛知県","ｱｲﾁｹﾝ"]
["454","愛知県","ｱｲﾁｹﾝ"]
["455","愛知県","ｱｲﾁｹﾝ"]
["457","愛知県","ｱｲﾁｹﾝ"]
["463","愛知県","ｱｲﾁｹﾝ"]
["458","愛知県","ｱｲﾁｹﾝ"]
["459","愛知県","ｱｲﾁｹﾝ"]
["465","愛知県","ｱｲﾁｹﾝ"]
["468","愛知県","ｱｲﾁｹﾝ"]
["441","愛知県","ｱｲﾁｹﾝ"]
["440","愛知県","ｱｲﾁｹﾝ"]
["444","愛知県","ｱｲﾁｹﾝ"]
["491","愛知県","ｱｲﾁｹﾝ"]
["494","愛知県","ｱｲﾁｹﾝ"]
["493","愛知県","ｱｲﾁｹﾝ"]
["489","愛知県","ｱｲﾁｹﾝ"]
["480","愛知県","ｱｲﾁｹﾝ"]
["475","愛知県","ｱｲﾁｹﾝ"]
["486","愛知県","ｱｲﾁｹﾝ"]
["487","愛知県","ｱｲﾁｹﾝ"]
["442","愛知県","ｱｲﾁｹﾝ"]
["496","愛知県","ｱｲﾁｹﾝ"]
["447","愛知県","ｱｲﾁｹﾝ"]
["448","愛知県","ｱｲﾁｹﾝ"]
["471","愛知県","ｱｲﾁｹﾝ"]
["470","愛知県","ｱｲﾁｹﾝ"]
["473","愛知県","ｱｲﾁｹﾝ"]
["446","愛知県","ｱｲﾁｹﾝ"]
["445","愛知県","ｱｲﾁｹﾝ"]
["443","愛知県","ｱｲﾁｹﾝ"]
["484","愛知県","ｱｲﾁｹﾝ"]
["479","愛知県","ｱｲﾁｹﾝ"]
["483","愛知県","ｱｲﾁｹﾝ"]
["485","愛知県","ｱｲﾁｹﾝ"]
["492","愛知県","ｱｲﾁｹﾝ"]
["495","愛知県","ｱｲﾁｹﾝ"]
["490","愛知県","ｱｲﾁｹﾝ"]
["476","愛知県","ｱｲﾁｹﾝ"]
["477","愛知県","ｱｲﾁｹﾝ"]
["474","愛知県","ｱｲﾁｹﾝ"]
["478","愛知県","ｱｲﾁｹﾝ"]
["472","愛知県","ｱｲﾁｹﾝ"]
["488","愛知県","ｱｲﾁｹﾝ"]
["482","愛知県","ｱｲﾁｹﾝ"]
["481","愛知県","ｱｲﾁｹﾝ"]
["498","愛知県","ｱｲﾁｹﾝ"]
["497","愛知県","ｱｲﾁｹﾝ"]
["449","愛知県","ｱｲﾁｹﾝ"]
["514","三重県","ﾐｴｹﾝ"]
["515","三重県","ﾐｴｹﾝ"]
["510","三重県","ﾐｴｹﾝ"]
["512","三重県","ﾐｴｹﾝ"]
["516","三重県","ﾐｴｹﾝ"]
["517","三重県","ﾐｴｹﾝ"]
["519","三重県","ﾐｴｹﾝ"]
["511","三重県","ﾐｴｹﾝ"]
["513","三重県","ﾐｴｹﾝ"]
["518","三重県","ﾐｴｹﾝ"]
["520","滋賀県","ｼｶﾞｹﾝ"]
["522","滋賀県","ｼｶﾞｹﾝ"]
["529","滋賀県","ｼｶﾞｹﾝ"]
["521","滋賀県","ｼｶﾞｹﾝ"]
["526","滋賀県","ｼｶﾞｹﾝ"]
["523","滋賀県","ｼｶﾞｹﾝ"]
["525","滋賀県","ｼｶﾞｹﾝ"]
["524","滋賀県","ｼｶﾞｹﾝ"]
["528","滋賀県","ｼｶﾞｹﾝ"]
["527","滋賀県","ｼｶﾞｹﾝ"]
["603","京都府","ｷｮｳﾄﾌ"]
["601","京都府","ｷｮｳﾄﾌ"]
["602","京都府","ｷｮｳﾄﾌ"]
["606","京都府","ｷｮｳﾄﾌ"]
["604","京都府","ｷｮｳﾄﾌ"]
["605","京都府","ｷｮｳﾄﾌ"]
["600","京都府","ｷｮｳﾄﾌ"]
["616","京都府","ｷｮｳﾄﾌ"]
["615","京都府","ｷｮｳﾄﾌ"]
["612","京都府","ｷｮｳﾄﾌ"]
["613","京都府","ｷｮｳﾄﾌ"]
["607","京都府","ｷｮｳﾄﾌ"]
["610","京都府","ｷｮｳﾄﾌ"]
["620","京都府","ｷｮｳﾄﾌ"]
["629","京都府","ｷｮｳﾄﾌ"]
["625","京都府","ｷｮｳﾄﾌ"]
["624","京都府","ｷｮｳﾄﾌ"]
["623","京都府","ｷｮｳﾄﾌ"]
["611","京都府","ｷｮｳﾄﾌ"]
["626","京都府","ｷｮｳﾄﾌ"]
["621","京都府","ｷｮｳﾄﾌ"]
["617","京都府","ｷｮｳﾄﾌ"]
["614","京都府","ｷｮｳﾄﾌ"]
["627","京都府","ｷｮｳﾄﾌ"]
["622","京都府","ｷｮｳﾄﾌ"]
["619","京都府","ｷｮｳﾄﾌ"]
["618","京都府","ｷｮｳﾄﾌ"]
["534","大阪府","ｵｵｻｶﾌ"]
["553","大阪府","ｵｵｻｶﾌ"]
["554","大阪府","ｵｵｻｶﾌ"]
["550","大阪府","ｵｵｻｶﾌ"]
["552","大阪府","ｵｵｻｶﾌ"]
["551","大阪府","ｵｵｻｶﾌ"]
["543","大阪府","ｵｵｻｶﾌ"]
["556","大阪府","ｵｵｻｶﾌ"]
["555","大阪府","ｵｵｻｶﾌ"]
["533","大阪府","ｵｵｻｶﾌ"]
["537","大阪府","ｵｵｻｶﾌ"]
["544","大阪府","ｵｵｻｶﾌ"]
["535","大阪府","ｵｵｻｶﾌ"]
["536","大阪府","ｵｵｻｶﾌ"]
["545","大阪府","ｵｵｻｶﾌ"]
["558","大阪府","ｵｵｻｶﾌ"]
["546","大阪府","ｵｵｻｶﾌ"]
["557","大阪府","ｵｵｻｶﾌ"]
["532","大阪府","ｵｵｻｶﾌ"]
["538","大阪府","ｵｵｻｶﾌ"]
["559","大阪府","ｵｵｻｶﾌ"]
["547","大阪府","ｵｵｻｶﾌ"]
["530","大阪府","ｵｵｻｶﾌ"]
["531","大阪府","ｵｵｻｶﾌ"]
["539","大阪府","ｵｵｻｶﾌ"]
["541","大阪府","ｵｵｻｶﾌ"]
["542","大阪府","ｵｵｻｶﾌ"]
["540","大阪府","ｵｵｻｶﾌ"]
["590","大阪府","ｵｵｻｶﾌ"]
["599","大阪府","ｵｵｻｶﾌ"]
["593","大阪府","ｵｵｻｶﾌ"]
["592","大阪府","ｵｵｻｶﾌ"]
["591","大阪府","ｵｵｻｶﾌ"]
["587","大阪府","ｵｵｻｶﾌ"]
["596","大阪府","ｵｵｻｶﾌ"]
["560","大阪府","ｵｵｻｶﾌ"]
["561","大阪府","ｵｵｻｶﾌ"]
["563","大阪府","ｵｵｻｶﾌ"]
["564","大阪府","ｵｵｻｶﾌ"]
["565","大阪府","ｵｵｻｶﾌ"]
["595","大阪府","ｵｵｻｶﾌ"]
["569","大阪府","ｵｵｻｶﾌ"]
["597","大阪府","ｵｵｻｶﾌ"]
["570","大阪府","ｵｵｻｶﾌ"]
["573","大阪府","ｵｵｻｶﾌ"]
["567","大阪府","ｵｵｻｶﾌ"]
["568","大阪府","ｵｵｻｶﾌ"]
["581","大阪府","ｵｵｻｶﾌ"]
["598","大阪府","ｵｵｻｶﾌ"]
["549","大阪府","ｵｵｻｶﾌ"]
["584","大阪府","ｵｵｻｶﾌ"]
["572","大阪府","ｵｵｻｶﾌ"]
["586","大阪府","ｵｵｻｶﾌ"]
["580","大阪府","ｵｵｻｶﾌ"]
["574","大阪府","ｵｵｻｶﾌ"]
["594","大阪府","ｵｵｻｶﾌ"]
["562","大阪府","ｵｵｻｶﾌ"]
["582","大阪府","ｵｵｻｶﾌ"]
["583","大阪府","ｵｵｻｶﾌ"]
["571","大阪府","ｵｵｻｶﾌ"]
["566","大阪府","ｵｵｻｶﾌ"]
["577","大阪府","ｵｵｻｶﾌ"]
["579","大阪府","ｵｵｻｶﾌ"]
["578","大阪府","ｵｵｻｶﾌ"]
["575","大阪府","ｵｵｻｶﾌ"]
["576","大阪府","ｵｵｻｶﾌ"]
["589","大阪府","ｵｵｻｶﾌ"]
["585","大阪府","ｵｵｻｶﾌ"]
["658","兵庫県","ﾋｮｳｺﾞｹﾝ"]
["657","兵庫県","ﾋｮｳｺﾞｹﾝ"]
["652","兵庫県","ﾋｮｳｺﾞｹﾝ"]
["653","兵庫県","ﾋｮｳｺﾞｹﾝ"]
["654","兵庫県","ﾋｮｳｺﾞｹﾝ"]
["655","兵庫県","ﾋｮｳｺﾞｹﾝ"]
["651","兵庫県","ﾋｮｳｺﾞｹﾝ"]
["669","兵庫県","ﾋｮｳｺﾞｹﾝ"]
["650","兵庫県","ﾋｮｳｺﾞｹﾝ"]
["670","兵庫県","ﾋｮｳｺﾞｹﾝ"]
["671","兵庫県","ﾋｮｳｺﾞｹﾝ"]
["672","兵庫県","ﾋｮｳｺﾞｹﾝ"]
["679","兵庫県","ﾋｮｳｺﾞｹﾝ"]
["660","兵庫県","ﾋｮｳｺﾞｹﾝ"]
["661","兵庫県","ﾋｮｳｺﾞｹﾝ"]
["673","兵庫県","ﾋｮｳｺﾞｹﾝ"]
["674","兵庫県","ﾋｮｳｺﾞｹﾝ"]
["662","兵庫県","ﾋｮｳｺﾞｹﾝ"]
["663","兵庫県","ﾋｮｳｺﾞｹﾝ"]
["656","兵庫県","ﾋｮｳｺﾞｹﾝ"]
["659","兵庫県","ﾋｮｳｺﾞｹﾝ"]
["664","兵庫県","ﾋｮｳｺﾞｹﾝ"]
["678","兵庫県","ﾋｮｳｺﾞｹﾝ"]
["668","兵庫県","ﾋｮｳｺﾞｹﾝ"]
["675","兵庫県","ﾋｮｳｺﾞｹﾝ"]
["677","兵庫県","ﾋｮｳｺﾞｹﾝ"]
["665","兵庫県","ﾋｮｳｺﾞｹﾝ"]
["666","兵庫県","ﾋｮｳｺﾞｹﾝ"]
["676","兵庫県","ﾋｮｳｺﾞｹﾝ"]
["667","兵庫県","ﾋｮｳｺﾞｹﾝ"]
["630","奈良県","ﾅﾗｹﾝ"]
["631","奈良県","ﾅﾗｹﾝ"]
["632","奈良県","ﾅﾗｹﾝ"]
["635","奈良県","ﾅﾗｹﾝ"]
["639","奈良県","ﾅﾗｹﾝ"]
["634","奈良県","ﾅﾗｹﾝ"]
["633","奈良県","ﾅﾗｹﾝ"]
["637","奈良県","ﾅﾗｹﾝ"]
["638","奈良県","ﾅﾗｹﾝ"]
["636","奈良県","ﾅﾗｹﾝ"]
["640","和歌山県","ﾜｶﾔﾏｹﾝ"]
["641","和歌山県","ﾜｶﾔﾏｹﾝ"]
["649","和歌山県","ﾜｶﾔﾏｹﾝ"]
["642","和歌山県","ﾜｶﾔﾏｹﾝ"]
["644","和歌山県","ﾜｶﾔﾏｹﾝ"]
["646","和歌山県","ﾜｶﾔﾏｹﾝ"]
["645","和歌山県","ﾜｶﾔﾏｹﾝ"]
["643","和歌山県","ﾜｶﾔﾏｹﾝ"]
["647","和歌山県","ﾜｶﾔﾏｹﾝ"]
["648","和歌山県","ﾜｶﾔﾏｹﾝ"]
["680","鳥取県","ﾄｯﾄﾘｹﾝ"]
["689","鳥取県","ﾄｯﾄﾘｹﾝ"]
["683","鳥取県","ﾄｯﾄﾘｹﾝ"]
["682","鳥取県","ﾄｯﾄﾘｹﾝ"]
["684","鳥取県","ﾄｯﾄﾘｹﾝ"]
["681","鳥取県","ﾄｯﾄﾘｹﾝ"]
["690","島根県","ｼﾏﾈｹﾝ"]
["699","島根県","ｼﾏﾈｹﾝ"]
["697","島根県","ｼﾏﾈｹﾝ"]
["695","島根県","ｼﾏﾈｹﾝ"]
["693","島根県","ｼﾏﾈｹﾝ"]
["691","島根県","ｼﾏﾈｹﾝ"]
["698","島根県","ｼﾏﾈｹﾝ"]
["694","島根県","ｼﾏﾈｹﾝ"]
["692","島根県","ｼﾏﾈｹﾝ"]
["696","島根県","ｼﾏﾈｹﾝ"]
["685","島根県","ｼﾏﾈｹﾝ"]
["700","岡山県","ｵｶﾔﾏｹﾝ"]
["701","岡山県","ｵｶﾔﾏｹﾝ"]
["703","岡山県","ｵｶﾔﾏｹﾝ"]
["709","岡山県","ｵｶﾔﾏｹﾝ"]
["702","岡山県","ｵｶﾔﾏｹﾝ"]
["704","岡山県","ｵｶﾔﾏｹﾝ"]
["710","岡山県","ｵｶﾔﾏｹﾝ"]
["712","岡山県","ｵｶﾔﾏｹﾝ"]
["711","岡山県","ｵｶﾔﾏｹﾝ"]
["713","岡山県","ｵｶﾔﾏｹﾝ"]
["708","岡山県","ｵｶﾔﾏｹﾝ"]
["706","岡山県","ｵｶﾔﾏｹﾝ"]
["714","岡山県","ｵｶﾔﾏｹﾝ"]
["715","岡山県","ｵｶﾔﾏｹﾝ"]
["719","岡山県","ｵｶﾔﾏｹﾝ"]
["716","岡山県","ｵｶﾔﾏｹﾝ"]
["718","岡山県","ｵｶﾔﾏｹﾝ"]
["705","岡山県","ｵｶﾔﾏｹﾝ"]
["717","岡山県","ｵｶﾔﾏｹﾝ"]
["707","岡山県","ｵｶﾔﾏｹﾝ"]
["730","広島県","ﾋﾛｼﾏｹﾝ"]
["732","広島県","ﾋﾛｼﾏｹﾝ"]
["734","広島県","ﾋﾛｼﾏｹﾝ"]
["733","広島県","ﾋﾛｼﾏｹﾝ"]
["731","広島県","ﾋﾛｼﾏｹﾝ"]
["739","広島県","ﾋﾛｼﾏｹﾝ"]
["736","広島県","ﾋﾛｼﾏｹﾝ"]
["738","広島県","ﾋﾛｼﾏｹﾝ"]
["737","広島県","ﾋﾛｼﾏｹﾝ"]
["725","広島県","ﾋﾛｼﾏｹﾝ"]
["729","広島県","ﾋﾛｼﾏｹﾝ"]
["723","広島県","ﾋﾛｼﾏｹﾝ"]
["722","広島県","ﾋﾛｼﾏｹﾝ"]
["720","広島県","ﾋﾛｼﾏｹﾝ"]
["721","広島県","ﾋﾛｼﾏｹﾝ"]
["726","広島県","ﾋﾛｼﾏｹﾝ"]
["728","広島県","ﾋﾛｼﾏｹﾝ"]
["727","広島県","ﾋﾛｼﾏｹﾝ"]
["735","広島県","ﾋﾛｼﾏｹﾝ"]
["750","山口県","ﾔﾏｸﾞﾁｹﾝ"]
["752","山口県","ﾔﾏｸﾞﾁｹﾝ"]
["751","山口県","ﾔﾏｸﾞﾁｹﾝ"]
["759","山口県","ﾔﾏｸﾞﾁｹﾝ"]
["755","山口県","ﾔﾏｸﾞﾁｹﾝ"]
["757","山口県","ﾔﾏｸﾞﾁｹﾝ"]
["754","山口県","ﾔﾏｸﾞﾁｹﾝ"]
["753","山口県","ﾔﾏｸﾞﾁｹﾝ"]
["747","山口県","ﾔﾏｸﾞﾁｹﾝ"]
["758","山口県","ﾔﾏｸﾞﾁｹﾝ"]
["744","山口県","ﾔﾏｸﾞﾁｹﾝ"]
["740","山口県","ﾔﾏｸﾞﾁｹﾝ"]
["741","山口県","ﾔﾏｸﾞﾁｹﾝ"]
["742","山口県","ﾔﾏｸﾞﾁｹﾝ"]
["743","山口県","ﾔﾏｸﾞﾁｹﾝ"]
["749","山口県","ﾔﾏｸﾞﾁｹﾝ"]
["745","山口県","ﾔﾏｸﾞﾁｹﾝ"]
["746","山口県","ﾔﾏｸﾞﾁｹﾝ"]
["756","山口県","ﾔﾏｸﾞﾁｹﾝ"]
["770","徳島県","ﾄｸｼﾏｹﾝ"]
["771","徳島県","ﾄｸｼﾏｹﾝ"]
["779","徳島県","ﾄｸｼﾏｹﾝ"]
["773","徳島県","ﾄｸｼﾏｹﾝ"]
["772","徳島県","ﾄｸｼﾏｹﾝ"]
["774","徳島県","ﾄｸｼﾏｹﾝ"]
["776","徳島県","ﾄｸｼﾏｹﾝ"]
["777","徳島県","ﾄｸｼﾏｹﾝ"]
["778","徳島県","ﾄｸｼﾏｹﾝ"]
["775","徳島県","ﾄｸｼﾏｹﾝ"]
["760","香川県","ｶｶﾞﾜｹﾝ"]
["761","香川県","ｶｶﾞﾜｹﾝ"]
["769","香川県","ｶｶﾞﾜｹﾝ"]
["763","香川県","ｶｶﾞﾜｹﾝ"]
["762","香川県","ｶｶﾞﾜｹﾝ"]
["765","香川県","ｶｶﾞﾜｹﾝ"]
["768","香川県","ｶｶﾞﾜｹﾝ"]
["767","香川県","ｶｶﾞﾜｹﾝ"]
["766","香川県","ｶｶﾞﾜｹﾝ"]
["764","香川県","ｶｶﾞﾜｹﾝ"]
["791","愛媛県","ｴﾋﾒｹﾝ"]
["790","愛媛県","ｴﾋﾒｹﾝ"]
["799","愛媛県","ｴﾋﾒｹﾝ"]
["794","愛媛県","ｴﾋﾒｹﾝ"]
["792","愛媛県","ｴﾋﾒｹﾝ"]
["798","愛媛県","ｴﾋﾒｹﾝ"]
["796","愛媛県","ｴﾋﾒｹﾝ"]
["793","愛媛県","ｴﾋﾒｹﾝ"]
["795","愛媛県","ｴﾋﾒｹﾝ"]
["797","愛媛県","ｴﾋﾒｹﾝ"]
["780","高知県","ｺｳﾁｹﾝ"]
["781","高知県","ｺｳﾁｹﾝ"]
["784","高知県","ｺｳﾁｹﾝ"]
["783","高知県","ｺｳﾁｹﾝ"]
["785","高知県","ｺｳﾁｹﾝ"]
["788","高知県","ｺｳﾁｹﾝ"]
["787","高知県","ｺｳﾁｹﾝ"]
["782","高知県","ｺｳﾁｹﾝ"]
["789","高知県","ｺｳﾁｹﾝ"]
["786","高知県","ｺｳﾁｹﾝ"]
["800","福岡県","ﾌｸｵｶｹﾝ"]
["801","福岡県","ﾌｸｵｶｹﾝ"]
["808","福岡県","ﾌｸｵｶｹﾝ"]
["804","福岡県","ﾌｸｵｶｹﾝ"]
["802","福岡県","ﾌｸｵｶｹﾝ"]
["803","福岡県","ﾌｸｵｶｹﾝ"]
["805","福岡県","ﾌｸｵｶｹﾝ"]
["806","福岡県","ﾌｸｵｶｹﾝ"]
["807","福岡県","ﾌｸｵｶｹﾝ"]
["813","福岡県","ﾌｸｵｶｹﾝ"]
["811","福岡県","ﾌｸｵｶｹﾝ"]
["812","福岡県","ﾌｸｵｶｹﾝ"]
["810","福岡県","ﾌｸｵｶｹﾝ"]
["815","福岡県","ﾌｸｵｶｹﾝ"]
["819","福岡県","ﾌｸｵｶｹﾝ"]
["814","福岡県","ﾌｸｵｶｹﾝ"]
["836","福岡県","ﾌｸｵｶｹﾝ"]
["837","福岡県","ﾌｸｵｶｹﾝ"]
["839","福岡県","ﾌｸｵｶｹﾝ"]
["830","福岡県","ﾌｸｵｶｹﾝ"]
["822","福岡県","ﾌｸｵｶｹﾝ"]
["820","福岡県","ﾌｸｵｶｹﾝ"]
["825","福岡県","ﾌｸｵｶｹﾝ"]
["826","福岡県","ﾌｸｵｶｹﾝ"]
["832","福岡県","ﾌｸｵｶｹﾝ"]
["834","福岡県","ﾌｸｵｶｹﾝ"]
["833","福岡県","ﾌｸｵｶｹﾝ"]
["831","福岡県","ﾌｸｵｶｹﾝ"]
["824","福岡県","ﾌｸｵｶｹﾝ"]
["828","福岡県","ﾌｸｵｶｹﾝ"]
["809","福岡県","ﾌｸｵｶｹﾝ"]
["838","福岡県","ﾌｸｵｶｹﾝ"]
["818","福岡県","ﾌｸｵｶｹﾝ"]
["816","福岡県","ﾌｸｵｶｹﾝ"]
["823","福岡県","ﾌｸｵｶｹﾝ"]
["821","福岡県","ﾌｸｵｶｹﾝ"]
["835","福岡県","ﾌｸｵｶｹﾝ"]
["827","福岡県","ﾌｸｵｶｹﾝ"]
["871","福岡県","ﾌｸｵｶｹﾝ"]
["829","福岡県","ﾌｸｵｶｹﾝ"]
["849","佐賀県","ｻｶﾞｹﾝ"]
["840","佐賀県","ｻｶﾞｹﾝ"]
["842","佐賀県","ｻｶﾞｹﾝ"]
["847","佐賀県","ｻｶﾞｹﾝ"]
["841","佐賀県","ｻｶﾞｹﾝ"]
["846","佐賀県","ｻｶﾞｹﾝ"]
["848","佐賀県","ｻｶﾞｹﾝ"]
["843","佐賀県","ｻｶﾞｹﾝ"]
["845","佐賀県","ｻｶﾞｹﾝ"]
["844","佐賀県","ｻｶﾞｹﾝ"]
["850","長崎県","ﾅｶﾞｻｷｹﾝ"]
["851","長崎県","ﾅｶﾞｻｷｹﾝ"]
["852","長崎県","ﾅｶﾞｻｷｹﾝ"]
["857","長崎県","ﾅｶﾞｻｷｹﾝ"]
["858","長崎県","ﾅｶﾞｻｷｹﾝ"]
["859","長崎県","ﾅｶﾞｻｷｹﾝ"]
["855","長崎県","ﾅｶﾞｻｷｹﾝ"]
["854","長崎県","ﾅｶﾞｻｷｹﾝ"]
["856","長崎県","ﾅｶﾞｻｷｹﾝ"]
["817","長崎県","ﾅｶﾞｻｷｹﾝ"]
["853","長崎県","ﾅｶﾞｻｷｹﾝ"]
["861","熊本県","ｸﾏﾓﾄｹﾝ"]
["860","熊本県","ｸﾏﾓﾄｹﾝ"]
["862","熊本県","ｸﾏﾓﾄｹﾝ"]
["866","熊本県","ｸﾏﾓﾄｹﾝ"]
["869","熊本県","ｸﾏﾓﾄｹﾝ"]
["868","熊本県","ｸﾏﾓﾄｹﾝ"]
["864","熊本県","ｸﾏﾓﾄｹﾝ"]
["867","熊本県","ｸﾏﾓﾄｹﾝ"]
["865","熊本県","ｸﾏﾓﾄｹﾝ"]
["863","熊本県","ｸﾏﾓﾄｹﾝ"]
["870","大分県","ｵｵｲﾀｹﾝ"]
["879","大分県","ｵｵｲﾀｹﾝ"]
["874","大分県","ｵｵｲﾀｹﾝ"]
["877","大分県","ｵｵｲﾀｹﾝ"]
["876","大分県","ｵｵｲﾀｹﾝ"]
["875","大分県","ｵｵｲﾀｹﾝ"]
["878","大分県","ｵｵｲﾀｹﾝ"]
["872","大分県","ｵｵｲﾀｹﾝ"]
["873","大分県","ｵｵｲﾀｹﾝ"]
["880","宮崎県","ﾐﾔｻﾞｷｹﾝ"]
["889","宮崎県","ﾐﾔｻﾞｷｹﾝ"]
["885","宮崎県","ﾐﾔｻﾞｷｹﾝ"]
["882","宮崎県","ﾐﾔｻﾞｷｹﾝ"]
["887","宮崎県","ﾐﾔｻﾞｷｹﾝ"]
["886","宮崎県","ﾐﾔｻﾞｷｹﾝ"]
["883","宮崎県","ﾐﾔｻﾞｷｹﾝ"]
["888","宮崎県","ﾐﾔｻﾞｷｹﾝ"]
["881","宮崎県","ﾐﾔｻﾞｷｹﾝ"]
["884","宮崎県","ﾐﾔｻﾞｷｹﾝ"]
["890","鹿児島県","ｶｺﾞｼﾏｹﾝ"]
["891","鹿児島県","ｶｺﾞｼﾏｹﾝ"]
["892","鹿児島県","ｶｺﾞｼﾏｹﾝ"]
["899","鹿児島県","ｶｺﾞｼﾏｹﾝ"]
["893","鹿児島県","ｶｺﾞｼﾏｹﾝ"]
["898","鹿児島県","ｶｺﾞｼﾏｹﾝ"]
["895","鹿児島県","ｶｺﾞｼﾏｹﾝ"]
["896","鹿児島県","ｶｺﾞｼﾏｹﾝ"]
["897","鹿児島県","ｶｺﾞｼﾏｹﾝ"]
["894","鹿児島県","ｶｺﾞｼﾏｹﾝ"]
["900","沖縄県","ｵｷﾅﾜｹﾝ"]
["901","沖縄県","ｵｷﾅﾜｹﾝ"]
["902","沖縄県","ｵｷﾅﾜｹﾝ"]
["903","沖縄県","ｵｷﾅﾜｹﾝ"]
["907","沖縄県","ｵｷﾅﾜｹﾝ"]
["905","沖縄県","ｵｷﾅﾜｹﾝ"]
["904","沖縄県","ｵｷﾅﾜｹﾝ"]
["906","沖縄県","ｵｷﾅﾜｹﾝ"]